{"text_format":"3","workbook":"xlsx","n_sheets":7,"sheets":["Cover","PS5_Supply","PLC Units BoQ ","Summary","Transport & offloading Matrix","CPA Formula","Exchange Rates"],"not_rendered":{"images":1,"external_links":8,"defined_names":377},"read":"whole","date_system":"1900"}

{"sheet":"Cover","index":0,"n_rows":41,"n_cols":2,"rows_kept":41,"merged":[[28,0,28,1],[31,0,31,1]]}
{"$rows_empty":10}
["PRICING INFORMATION"]
[]
["INVITATION TO TENDER"]
[]
[" ENQUIRY No. or RFP number"]
["FOR"]
["Name of enquiry","Manufacture, supply, testing, delivery and offloading of estimated quantities of Power Line Carrier Equipment on an “as and when required” basis"]
[]
[]
[]
["TENDERER’S COMPANY NAME:  "]
[]
[]
[]
["THE PRICE:  IN RAND (excluding VAT) :"]
["THE PRICE:  IN RAND (Including VAT) :"]
[]
["RAND VALUE IN WORDS EXCLUDING VAT"]
[]
[]
["RAND VALUE IN WORDS INCLUDING VAT"]
[]
[]
["DATE :",{"$f":"TODAY()","v":"2026-07-30"}]
[]
[]
["AUTHORISED SIGNATORY "]
[]
["NAME & SURNAME:"]
[]
["DESIGNATION :"]

{"sheet":"PS5_Supply","index":1,"n_rows":104,"n_cols":46,"rows_kept":104,"merged":[[0,18,1,19],[0,28,1,29],[4,1,5,9],[9,10,11,10],[9,11,11,11],[9,12,11,12],[9,13,11,13],[9,14,11,14],[9,15,11,15],[9,16,11,16],[9,17,11,17],[9,18,11,18],[9,19,11,19],[9,20,11,20],[9,21,11,21],[9,22,11,22],[9,23,11,23],[9,24,11,24],[9,25,11,25],[9,26,11,26],[9,27,11,27],[9,28,11,28],[9,29,11,29],[9,30,11,30],[9,31,11,31],[9,32,11,32],[9,33,11,33],[9,34,11,34],[9,35,11,35],[9,36,11,36],[9,37,11,37],[9,38,11,38],[9,39,11,39],[9,40,11,40],[9,41,11,41],[9,42,11,42],[9,43,11,43],[9,44,11,44],[9,45,11,45],[58,18,59,19],[58,28,59,29],[60,1,61,9],[65,10,67,10],[65,11,67,11],[65,12,67,12],[65,13,67,13],[65,14,67,14],[65,15,67,15],[65,16,67,16],[65,17,67,17],[65,18,67,18],[65,19,67,19],[65,20,67,20],[65,21,67,21],[65,22,67,22],[65,23,67,23],[65,24,67,24],[65,25,67,25],[65,26,67,26],[65,27,67,27],[65,28,67,28],[65,29,67,29],[65,30,67,30],[65,31,67,31],[65,32,67,32],[65,33,67,33],[65,34,67,34],[65,35,67,35],[65,36,67,36],[65,37,67,37],[65,38,67,38],[65,39,67,39],[65,40,67,40],[65,41,67,41],[65,42,67,42],[65,43,67,43],[65,44,67,44],[65,45,67,45]]}
[{"$nulls":40},"SUPPLIER:",{"$f":"Cover!B21","v":0}]
[null,"ENQUIRY NUMBER :",null,null,{"$f":"Cover!B15","v":0},"PRICES INCLUSIVE OF VAT (VALUE ADDED TAX)"]
[]
[null,"PRICE SCHEDULE : C (PS5) : ",{"$nulls":3},{"$f":"Cover!B17","v":"Manufacture, supply, testing, delivery and offloading of estimated quantities of Power Line Carrier Equipment on an “as and when required” basis"}]
[null,"PRICE SCHEDULE FOR GOODS MANUFACTURED IN AND OUTSIDE THE R.S.A.  PRICE PER UNIT FOR SUPPLY, DELIVERY AND OFF LOADING.  ALL AMOUNTS EXPRESSED IN RANDS"]
[]
[]
[null," REMARKS",{"$nulls":5},"                       ITEM NO",null,null,1,2,3,4,5,6,7,8,9,10,11,12,13,14,15,16,17,18,19,20,21,22,23,24,25,26,27,28,29,30,31,32,33,34,35,36]
[null," *Eskom may effect this insurance which includes war",{"$nulls":5},"                  ITEM DESCRIPTION",null,null,"Indicate CPA Formula here","Indicate CPA Formula here","Indicate CPA Formula here","Indicate CPA Formula here","Indicate CPA Formula here","Indicate CPA Formula here","Indicate CPA Formula here","Indicate CPA Formula here","Indicate CPA Formula here","Indicate CPA Formula here","Indicate CPA Formula here","Indicate CPA Formula here","Indicate CPA Formula here","Indicate CPA Formula here","Indicate CPA Formula here","Indicate CPA Formula here","Indicate CPA Formula here","Indicate CPA Formula here","Indicate CPA Formula here","Indicate CPA Formula here","Indicate CPA Formula here","Indicate CPA Formula here","Indicate CPA Formula here","Indicate CPA Formula here","Indicate CPA Formula here","Indicate CPA Formula here","Indicate CPA Formula here","Indicate CPA Formula here","Indicate CPA Formula here","Indicate CPA Formula here","Indicate CPA Formula here","Indicate CPA Formula here","Indicate CPA Formula here","Indicate CPA Formula here","Indicate CPA Formula here","Indicate CPA Formula here"]
[{"$nulls":10},{"$f":"'[8]PLC Units Project '!$D$4","v":"Carrier Cabinet & Wiring 1 PLC (SAP 0554765)"},{"$f":"'[8]PLC Units Project '!$E$4","v":"Carrier Combiner Phase to Phase (SAP 0554766)"},{"$f":"'[8]PLC Units Project '!$F$4","v":"PLC 50W 2kHz TPE (SAP 0224011)"},{"$f":"'[8]PLC Units Project '!$G$4","v":"PLC 100W 2kHz TPE (SAP 0224017)"},{"$f":"'[8]PLC Units Project '!$B$106","v":"Carrier Cabinet and wiring for 2 PLCs. SAP 0224028"},{"$f":"'[8]PLC Units Project '!$B$107","v":"Stand alone cabinet (KX-1) SAP 0224033"},{"$f":"'[8]PLC Units Project '!$B$108","v":"Wiring Loom convert from stand alone cabinet to cabinet with 1 PLC (KX-W) SAP 0224030"},{"$f":"'[8]PLC Units Project '!$B$109","v":"PLC Carrier Combiner for three phase coupling SAP0207814"},{"$f":"'[8]PLC Units Project '!$B$110","v":"PLC 40/50 W, 4 kHz Teleprotection (3 Channel), Data (19.2 kbps)  (Complete Unit with all components) SAP 0224012"},{"$f":"'[8]PLC Units Project '!$B$111","v":"PLC 40/50 W, 4 kHz Teleprotection (3 Channel), Data, Speech (Complete Unit with all components) SAP 0224013"},{"$f":"'[8]PLC Units Project '!$B$112","v":"PLC 40/50 W, 4 kHz Teleprotection (3 Channel), Wideband Speech  (Complete Unit with all components) SAP 0224014"},{"$f":"'[8]PLC Units Project '!$B$113","v":"PLC 40/50 W, 8 kHz Teleprotection (3 Channel), Wideband Speech/Data  (Complete Unit with all components) SAP 0224016"},{"$f":"'[8]PLC Units Project '!$B$114","v":"PLC 80/100 W, 4 kHz Teleprotection (3 Channel), Data (19.2 kbps)  (Complete Unit with all components) SAP 0224018"},{"$f":"'[8]PLC Units Project '!$B$115","v":"PLC 80/100 W, 4 kHz Teleprotection (3 Channel), Data, Speech (Complete Unit with all components) SAP 0554801"},{"$f":"'[8]PLC Units Project '!$B$116","v":"PLC 80/100 W, 4 kHz Teleprotection (3 Channel), Wideband Speech  (Complete Unit with all components) SAP 0224021"},{"$f":"'[8]PLC Units Project '!$B$117","v":"PLC 80/100 W, 8 kHz Teleprotection (3 Channel), Wideband Speech/Data  (Complete Unit with all components) SAP 0224022"},{"$f":"'[8]PLC Units Project '!$B$118","v":"Upgrade from 2kHz to 4kHz Teleprotection, Speech and Data SAP 0224023"},{"$f":"'[8]PLC Units Project '!$B$119","v":"Upgrade from 2kHz to 4kHz Teleprotection and Data SAP 0224024"},{"$f":"'[8]PLC Units Project '!$B$120","v":"Upgrade from 2kHz to 8kHz Teleprotection, Speech and Data SAP 0224025"},{"$f":"'[8]PLC Units Project '!$B$121","v":"Upgrade from 4kHz Teleprotection Only to 4kHz Teleprotection and Speech SAP 0224026"},{"$f":"'[8]PLC Units Project '!$B$122","v":"Audio frequency interface module or equivalent SAP 0554743"},{"$f":"'[8]PLC Units Project '!$B$123","v":"Teleprotection interface module SAP 0554744"},{"$f":"'[8]PLC Units Project '!$B$124","v":"CPU Module/ Digital Signal Processing (DSP) module SAP 0554745"},{"$f":"'[8]PLC Units Project '!$B$125","v":"Radio Frequency Hybrid and Transmit filter SAP 0554746"},{"$f":"'[8]PLC Units Project '!$B$126","v":"Carrier combiner and Transmit filter (80/100W) SAP 0554747"},{"$f":"'[8]PLC Units Project '!$B$127","v":"Receive filter SAP 0554763"},{"$f":"'[8]PLC Units Project '!$B$128","v":"Retuning of Filters SAP 0554767"},{"$f":"'[8]PLC Units Project '!$B$129","v":"40/50W Power Amplifier SAP 0554764"},{"$f":"'[8]PLC Units Project '!$B$130","v":"Subrack 1 SAP 0224041"},{"$f":"'[8]PLC Units Project '!$B$131","v":"Subrack 2 SAP 0002415"},{"$f":"'[8]PLC Units Project '!$B$132","v":"Subrack 3 SAP 0009459"},{"$f":"'[8]PLC Units Project '!$B$133","v":"Modem 2xV.24/1xV.11 SAP 0224051"},{"$f":"'[8]PLC Units Project '!$B$134","v":"Modem 6xV.24/2xV.11/LAN/G703.1 SAP 0224054"},{"$f":"'[8]PLC Units Project '!$B$135","v":"Power Supply unit SAP 0554748"},{"$f":"'[8]PLC Units Project '!$B$136","v":"Protection Interface Adaptor SAP 0224050"},{"$f":"'[8]PLC Units Project '!$B$137","v":"Dummy Load SAP 0002413"}]
[null,"   risk insurance"]
[null,"**Please specify"]
[{"$nulls":10},10,11,12,13,14,15,16,17,18,19,20,21,22,23,24,25,26,27,28,29,30,31,32,33,34,35,36,37,38,39,40,41,42,43,44,45]
[null,"SUPPLIED FROM OUTSIDE R.S.A.(If Applicable):",{"$nulls":7},"(In ZAR)"]
[null,"1: F.O.B. PRICE",{"$nulls":7},"(In ZAR)"]
[null,"2: COST OF SEA  FREIGHT",{"$nulls":7},"(In ZAR)"]
[null,"3: COST OF AIR  FREIGHT",{"$nulls":7},"(In ZAR)"]
[null,"4: COST OF MARINE INSURANCES *",{"$nulls":7},"(In ZAR)"]
[null,"5: TOTAL PRICE DELIVERED PORT R.S.A. ...",{"$nulls":5},"(1+2+3+4)",null,"(In ZAR)",{"$f":"SUM(K15:K18)","v":0},{"$f":"SUM(L15:L18)","v":0},0,0,0,0,0,0,0,0,0,0,0,0,0,0,0,0,0,0,0,0,0,0,0,0,0,0,0,0,0,0,0,0,0,0]
[null,"6: WHARFAGE",{"$nulls":7},"(In ZAR)"]
[null,"7: LANDING CHARGES",{"$nulls":7},"(In ZAR)"]
[null,"8: CUSTOMS DUTIES",{"$nulls":7},"(In ZAR)"]
[null,"9: IMPORT SURCHARGE",{"$nulls":7},"(In ZAR)"]
[null,"10: OTHER** (Includes Interest, Project & H&S, QC Costs etc)",{"$nulls":7},"(In ZAR)"]
[null,"11: COST OF IMPORTATION ...",{"$nulls":5},"(6+7+8+9+10)",null,"(In ZAR)",{"$f":"SUM(K20:K24)","v":0},{"$f":"SUM(L20:L24)","v":0},0,0,0,0,0,0,0,0,0,0,0,0,0,0,0,0,0,0,0,0,0,0,0,0,0,0,0,0,0,0,0,0,0,0]
[null,"12: COST OF RAIL TRANSPORT IN R.S.A.",{"$nulls":7},"(In ZAR)"]
[null,"13: COST OF ROAD TRANSPORT IN R.S.A.",{"$nulls":7},"(In ZAR)"]
[null,"14: TOTAL COST OF TRANSPORT S.A. PORT TO WORK/SITE ...",{"$nulls":5},"(12+13)",null,"(In ZAR)",{"$f":"K26+K27","v":0},{"$f":"L26+L27","v":0},0,0,0,0,0,0,0,0,0,0,0,0,0,0,0,0,0,0,0,0,0,0,0,0,0,0,0,0,0,0,0,0,0,0]
[null,"15: TOTAL PRICE (F.O.B.) DELIVERED TO WORKS/SITE...",{"$nulls":5},"(5+11+14)",null,"(In ZAR)",{"$f":"K19+K25+K28","v":0},{"$f":"L19+L25+L28","v":0},0,0,0,0,0,0,0,0,0,0,0,0,0,0,0,0,0,0,0,0,0,0,0,0,0,0,0,0,0,0,0,0,0,0]
[]
[null,"SUPPLIED FROM INSIDE R.S.A."]
[null,"16: F.O.R. PRICE-GOODS MANUFACTURED INSIDE R.S.A."]
[null,"17: F.O.R. PRICE-GOODS SUPPLIED FROM IMPORTED ITEMS"]
[null,"18: TOTAL F.O.R. PRICE ...",{"$nulls":5},"(16+17)",null,null,{"$f":"K32+K33","v":0},{"$f":"L32+L33","v":0},0,0,0,0,0,0,0,0,0,0,0,0,0,0,0,0,0,0,0,0,0,0,0,0,0,0,0,0,0,0,0,0,0,0]
[null,"19: COST OF RAIL TRANSPORT (per Transportation & Off-loading Matrix)"]
[null,"20: COST OF ROAD TRANSPORT (per Transportation & Off-loading Matrix)"]
[null,"21: COST OF TRANSPORT WORKS TO SITE ...          ",{"$nulls":5},"(19+20)",null,null,{"$f":"K35+K36","v":0},{"$f":"L35+L36","v":0},0,0,0,0,0,{"$f":"R35+R36","v":0},{"$f":"S35+S36","v":0},{"$f":"T35+T36","v":0},{"$f":"U35+U36","v":0},{"$f":"V35+V36","v":0},{"$f":"W35+W36","v":0},{"$f":"X35+X36","v":0},{"$f":"Y35+Y36","v":0},{"$f":"Z35+Z36","v":0},{"$f":"AA35+AA36","v":0},{"$f":"AB35+AB36","v":0},{"$f":"AC35+AC36","v":0},{"$f":"AD35+AD36","v":0},{"$f":"AE35+AE36","v":0},{"$f":"AF35+AF36","v":0},{"$f":"AG35+AG36","v":0},{"$f":"AH35+AH36","v":0},{"$f":"AI35+AI36","v":0},{"$f":"AJ35+AJ36","v":0},{"$f":"AK35+AK36","v":0},{"$f":"AL35+AL36","v":0},{"$f":"AM35+AM36","v":0},{"$f":"AN35+AN36","v":0},{"$f":"AO35+AO36","v":0},{"$f":"AP35+AP36","v":0},{"$f":"AQ35+AQ36","v":0},{"$f":"AR35+AR36","v":0},{"$f":"AS35+AS36","v":0},{"$f":"AT35+AT36","v":0}]
[null,"22: PRICE (F.O.R.) DELIVERED TO SITE ...          ",{"$nulls":5},"(18+21)",null,null,{"$f":"K34+K37","v":0},{"$f":"L34+L37","v":0},0,0,0,0,0,0,0,0,0,0,0,0,0,0,0,0,0,0,0,0,0,0,0,0,0,0,0,0,0,0,0,0,0,0]
[null," SITE WORK (ERECTION / INSTALLATION INCL. COMMISSIONING) (Not applicable)"]
[null,"23: LOCAL LABOUR "]
[null,"24: EXPATRIATE  LABOUR"]
[null,"25: TOTAL PRICE FOR SITE WORK ...          ",{"$nulls":5},"(23+24)",null,null,{"$f":"K40+K41","v":0},{"$f":"L40+L41","v":0},0,0,0,0,0,{"$f":"R40+R41","v":0},0,0,0,0,0,0,0,0,0,0,0,0,0,0,0,0,0,0,0,0,0,0,0,0,0,0,0,0]
[null,"26: OVERSEAS ENGINEERING SERVICES"]
[null,"27: LOCAL ENGINEERING SERVICES"]
[null,"28: TOTAL PRICE FOR ENGINEERING SERVICES...",{"$nulls":5},"(26+27)",null,null,{"$f":"K43+K44","v":0},{"$f":"L43+L44","v":0},0,0,0,0,0,{"$f":"R43+R44","v":0},{"$f":"S43+S44","v":0},0,0,0,0,0,0,0,0,0,0,0,0,0,0,0,0,0,0,0,0,0,0,0,0,0,0,0]
[null,"29: TOTAL PRICE EXCLUDING VAT",{"$nulls":8},{"$f":"K29+K38+K42+K45","v":0},{"$f":"L29+L38+L42+L45","v":0},0,0,0,0,0,0,{"$f":"S29+S38+S42+S45","v":0},0,0,0,0,0,0,0,0,0,0,0,0,0,0,0,0,0,0,0,0,0,0,0,0,0,0,0]
[null,"29. VAT",{"$nulls":8},{"$f":"K46*0.15","v":0},{"$f":"L46*0.15","v":0},0,0,0,0,0,0,0,0,0,0,0,0,0,0,0,0,0,0,0,0,0,0,0,0,0,0,0,0,0,0,0,0,0,0]
[null,"30: TOTAL  PRICE INCLUDING VAT",{"$nulls":5},"(27+36+46)",null,null,{"$f":"SUM(K46:K47)","v":0},{"$f":"SUM(L46:L47)","v":0},0,0,0,0,0,0,0,0,0,0,0,0,0,0,0,0,0,0,0,0,0,0,0,0,0,0,0,0,0,0,0,0,0,0]
[]
[null,"SIGNATURE..................................................................."]
[]
[]
[null,"Date...................................................................",{"$nulls":14},"CAPACITY........................................................................",{"$nulls":9},"CAPACITY........................................................................",{"$nulls":9},"CAPACITY........................................................................"]
[]
[]
[]
[null,"ENQUIRY NUMBER :",null,null,{"$f":"Cover!B15","v":0},"PRICES INCLUSIVE OF VAT (VALUE ADDED TAX)"]
[]
[null,"PRICE SCHEDULE : C (PS5) :  ",{"$nulls":3},{"$f":"Cover!B17","v":"Manufacture, supply, testing, delivery and offloading of estimated quantities of Power Line Carrier Equipment on an “as and when required” basis"}]
[]
[null," PRICE SCHEDULE FOR GOODS MANUFACTURED OUTSIDE THE R.S.A.  PRICE PER UNIT FOR ENGINEERING, MANUFACTURE, SUPPLY AND DELIVERY.  ALL AMOUNTS EXPRESSED IN FOREIGN CURRENCY (UP TO LINE 49)."]
[]
[]
[]
[null," REMARKS",{"$nulls":5},"                       ITEM NO",null,null,1,2,3,4,5,6,7,8,9,10,11,12,13,14,15,16,17,18,19,20,21,22,23,24,25,26,27,28,29,30,31,32,33,34,35,36]
[null," *Eskom may effect this insurance which includes war",{"$nulls":5},"                  ITEM DESCRIPTION"]
[null,"   risk insurance"]
[null,"**Please specify"]
[null,"PRICE DELIVERED TO PORT R.S.A. (LINE 5)",{"$nulls":6},"(In Foreign Currency)"]
[null,"31: CURRENCY A   1 ZAR=............",null,null,"EUR",{"$nulls":3},"(In Foreign Currency)"]
[null,"32: CURRENCY B   1 ZAR=............",null,null,"(FOB)",{"$nulls":3},"(In Foreign Currency)"]
[null,"33: CURRENCY C   1 ZAR=............",null,null,"(FOB)",{"$nulls":3},"(In Foreign Currency)"]
[null,"34: CURRENCY D   1 ZAR=............",{"$nulls":6},"(In Foreign Currency)"]
[null,"35: CURRENCY E   1 ZAR=............",null,null,"(INSURANCE)",{"$nulls":3},"(In Foreign Currency)"]
[null,"36: TOTAL F.O.B. PRICE ",{"$nulls":5},"(5=31+32+33+34+35)",null,null,{"$f":"SUM(K69:K74)","v":0},{"$f":"SUM(L69:L74)","v":0},0,0,0,0,0,0,0,0,0,0,0,0,0,0,0,0,0,0,0,0,0,0,0,0,0,0,0,0,0,0,0,0,0,0]
[null,"PRICE EXPATRIATE LABOUR (LINE 25)",{"$nulls":6},"(In Foreign Currency)"]
[null,"37: CURRENCY A   1 ZAR=............",{"$nulls":6},"(In Foreign Currency)"]
[null,"38: CURRENCY B   1 ZAR=............",{"$nulls":6},"(In Foreign Currency)"]
[null,"39: CURRENCY C   1 ZAR=............",{"$nulls":6},"(In Foreign Currency)"]
[null,"40: CURRENCY D   1 ZAR=............",{"$nulls":6},"(In Foreign Currency)"]
[null,"41: CURRENCY E   1 ZAR=.............",{"$nulls":6},"(In Foreign Currency)"]
[null,"42.TOTAL PRICE EXPATRIATE LABOUR ",{"$nulls":5},"(24=37+38+39+40+41)",null,null,{"$f":"SUM(K76:K81)","v":{"v":0,"d":"0.00"}},{"$f":"SUM(L76:L81)","v":{"v":0,"d":"0.00"}},{"v":0,"d":"0.00"},{"v":0,"d":"0.00"},{"v":0,"d":"0.00"},{"v":0,"d":"0.00"},{"v":0,"d":"0.00"},{"v":0,"d":"0.00"},{"v":0,"d":"0.00"},{"v":0,"d":"0.00"},{"v":0,"d":"0.00"},{"v":0,"d":"0.00"},{"v":0,"d":"0.00"},{"v":0,"d":"0.00"},{"v":0,"d":"0.00"},{"v":0,"d":"0.00"},{"v":0,"d":"0.00"},{"v":0,"d":"0.00"},{"v":0,"d":"0.00"},{"v":0,"d":"0.00"},{"v":0,"d":"0.00"},{"v":0,"d":"0.00"},{"v":0,"d":"0.00"},{"v":0,"d":"0.00"},{"v":0,"d":"0.00"},{"v":0,"d":"0.00"},{"v":0,"d":"0.00"},{"v":0,"d":"0.00"},{"v":0,"d":"0.00"},{"v":0,"d":"0.00"},{"v":0,"d":"0.00"},{"v":0,"d":"0.00"},{"v":0,"d":"0.00"},{"v":0,"d":"0.00"},{"v":0,"d":"0.00"},{"v":0,"d":"0.00"}]
[null,"PRICE OVERSEAS ENGINEERING SERVICES (LINE 27)",{"$nulls":6},"(In Foreign Currency)"]
[null,"43: CURRENCY A   1 ZAR=............",{"$nulls":6},"(In Foreign Currency)"]
[null,"44: CURRENCY B   1 ZAR=............",{"$nulls":6},"(In Foreign Currency)"]
[null,"45: CURRENCY C   1 ZAR=............",{"$nulls":6},"(In Foreign Currency)"]
[null,"46: CURRENCY D   1 ZAR=............",{"$nulls":6},"(In Foreign Currency)"]
[null,"47: CURRENCY E   1 ZAR=.............",{"$nulls":6},"(In Foreign Currency)"]
[null,"48: TOTAL PRICE OVERSEAS ENGINEERING SERVICES (LINE 26) ",{"$nulls":6},"(26=43+44+45+46+47)",null,{"$f":"SUM(K83:K88)","v":{"v":0,"d":"0.00"}},{"$f":"SUM(L83:L88)","v":{"v":0,"d":"0.00"}},{"v":0,"d":"0.00"},{"v":0,"d":"0.00"},{"v":0,"d":"0.00"},{"v":0,"d":"0.00"},{"v":0,"d":"0.00"},{"v":0,"d":"0.00"},{"v":0,"d":"0.00"},{"v":0,"d":"0.00"},{"v":0,"d":"0.00"},{"v":0,"d":"0.00"},{"v":0,"d":"0.00"},{"v":0,"d":"0.00"},{"v":0,"d":"0.00"},{"v":0,"d":"0.00"},{"v":0,"d":"0.00"},{"v":0,"d":"0.00"},{"v":0,"d":"0.00"},{"v":0,"d":"0.00"},{"v":0,"d":"0.00"},{"v":0,"d":"0.00"},{"v":0,"d":"0.00"},{"v":0,"d":"0.00"},{"v":0,"d":"0.00"},{"v":0,"d":"0.00"},{"v":0,"d":"0.00"},{"v":0,"d":"0.00"},{"v":0,"d":"0.00"},{"v":0,"d":"0.00"},{"v":0,"d":"0.00"},{"v":0,"d":"0.00"},{"v":0,"d":"0.00"},{"v":0,"d":"0.00"},{"v":0,"d":"0.00"},{"v":0,"d":"0.00"}]
[null,"49: FOREIGN CONTENT OF TOTAL PRICE",{"$nulls":5},"(36+42+48)"]
[null,"LOCAL PREFERENCE FOR ELECTRONICS ONLY"]
[null,"50. FOR PRICE GOODS MANUFACTURED IN R.S.A. (LINE 16)",{"$nulls":8},{"$f":"K32","v":0},{"$f":"L32","v":0},0,0,0,0,0,0,0,0,0,0,0,0,0,0,0,0,0,0,0,0,0,0,0,0,0,0,0,0,0,0,0,0,0,0]
[null,"51. PRICE FOR LOCAL DESIGN / ENGINEERING SERVICES (LINE 27) ",{"$nulls":8},{"$f":"K44","v":0},{"$f":"L44","v":0},0,0,0,0,0,0,0,0,0,0,0,0,0,0,0,0,0,0,0,0,0,0,0,0,0,0,0,0,0,0,0,0,0,0]
[null,"52. PERCENTAGE PREFERENCE CLAIMED (=................) ON LINE 50"]
[null,"53. PERCENTAGE PREFERENCE CLAIMED (=................) ON LINE 51"]
[null,"54. TOTAL AMOUNT CLAIMED ",null,null,"(52 + 53)",{"$nulls":5},{"$f":"K94+K95","v":0},{"$f":"L94+L95","v":0},0,0,0,0,0,0,0,0,0,0,0,0,0,0,0,0,0,0,0,0,0,0,0,0,0,0,0,0,0,0,0,0,0,0]
[]
[]
[]
[null,"SIGNATURE...................................................................",{"$nulls":18},"SIGNATURE..................................................................."]
[{"$nulls":30},"SIGNATURE...................................................................",{"$nulls":9},"SIGNATURE...................................................................",{"$nulls":4},"CAPACITY........................................................................"]
[]
[null,"Date...................................................................",{"$nulls":14},"CAPACITY........................................................................",{"$nulls":3},"Date...................................................................",{"$nulls":5},"CAPACITY........................................................................",{"$nulls":9},"CAPACITY........................................................................"]
[{"$nulls":30},"Date...................................................................",{"$nulls":9},"Date..................................................................."]

{"sheet":"PLC Units BoQ ","index":2,"n_rows":145,"n_cols":25,"rows_kept":145,"merged":[[1,0,1,1],[1,2,1,4],[2,0,2,1],[2,2,2,4],[3,0,3,1],[3,2,3,4],[7,1,7,2],[7,3,7,20],[8,3,8,6],[8,7,8,10],[8,11,8,14],[8,15,8,18],[8,19,8,22]]}
[]
["Enquiry No.",null,{"$f":"Cover!B15","v":0}]
["Package Name:",null,{"$f":"Cover!B17","v":"Manufacture, supply, testing, delivery and offloading of estimated quantities of Power Line Carrier Equipment on an “as and when required” basis"}]
["Tenderer's Name:",null,{"$f":"Cover!B21","v":0}]
[]
[]
[]
[{"$nulls":3},"Bill of Quantities",{"$nulls":19},"Cost per unit","Grand total"]
[null,"Feeder","Estimated quantities","Miscellaneous ",{"$nulls":3},"Carrier Cabinet & Wiring 1 PLC (SAP 0554765)",{"$nulls":3},"Carrier Combiner Phase to Phase (SAP 0554766)",{"$nulls":3},"PLC 50W 2kHz TPE (SAP 0224011)",{"$nulls":3},"PLC 100W 2kHz TPE (SAP 0224017)"]
[{"$nulls":3},"Local ","foreign","N/A","Total","Local (no foreign)",null,"N/A",null,"Local ","foreign","N/A","Total","Local ","foreign",{"$f":"N10","v":"N/A"},"Total","Local ","foreign",{"$f":"R10","v":"N/A"},"Total"]
[null,"Description","Number",{"$f":"H11","v":"SUPPLIED FROM INSIDE R.S.A."},{"$f":"I11","v":"SUPPLIED FROM OUTSIDE R.S.A.(If Applicable):"},{"$f":"J11","v":" SITE WORK (ERECTION / INSTALLATION INCL. COMMISSIONING) (Not applicable)"},{"$f":"K11","v":"Total"},{"$f":"PS5_Supply!B31","v":"SUPPLIED FROM INSIDE R.S.A."},{"$f":"PS5_Supply!B14","v":"SUPPLIED FROM OUTSIDE R.S.A.(If Applicable):"},{"$f":"PS5_Supply!B39","v":" SITE WORK (ERECTION / INSTALLATION INCL. COMMISSIONING) (Not applicable)"},"Total",{"$f":"PS5_Supply!B31","v":"SUPPLIED FROM INSIDE R.S.A."},{"$f":"PS5_Supply!B14","v":"SUPPLIED FROM OUTSIDE R.S.A.(If Applicable):"},{"$f":"PS5_Supply!B39","v":" SITE WORK (ERECTION / INSTALLATION INCL. COMMISSIONING) (Not applicable)"},null,{"$f":"L11","v":"SUPPLIED FROM INSIDE R.S.A."},{"$f":"M11","v":"SUPPLIED FROM OUTSIDE R.S.A.(If Applicable):"},{"$f":"PS5_Supply!B39","v":" SITE WORK (ERECTION / INSTALLATION INCL. COMMISSIONING) (Not applicable)"},null,{"$f":"P11","v":"SUPPLIED FROM INSIDE R.S.A."},{"$f":"Q11","v":"SUPPLIED FROM OUTSIDE R.S.A.(If Applicable):"},{"$f":"PS5_Supply!B39","v":" SITE WORK (ERECTION / INSTALLATION INCL. COMMISSIONING) (Not applicable)"}]
[]
[null,"400 kV Alpha – Tutuka 1",2,{"$nulls":4},{"$f":"PS5_Supply!K38","v":0},{"$f":"PS5_Supply!K29","v":0},{"$f":"PS5_Supply!K42+PS5_Supply!K45","v":0},{"$f":"H13+I13+J13","v":{"v":0,"d":"R0.00"}},{"$f":"PS5_Supply!L38","v":{"v":0,"d":"R0.00"}},{"$f":"PS5_Supply!L29","v":{"v":0,"d":"R0.00"}},{"$f":"PS5_Supply!L42+PS5_Supply!L45","v":{"v":0,"d":"R0.00"}},{"$f":"L13+M13+N13","v":{"v":0,"d":"R0.00"}},{"$f":"PS5_Supply!M38","v":{"v":0,"d":"R0.00"}},{"$f":"PS5_Supply!M29","v":{"v":0,"d":"R0.00"}},{"$f":"PS5_Supply!M42+PS5_Supply!M45","v":{"v":0,"d":"R0.00"}},{"$f":"P13+Q13+R13","v":{"v":0,"d":"R0.00"}},{"$f":"PS5_Supply!N38","v":{"v":0,"d":"R0.00"}},{"$f":"PS5_Supply!N29","v":{"v":0,"d":"R0.00"}},{"$f":"PS5_Supply!N42+PS5_Supply!N45","v":{"v":0,"d":"R0.00"}},null,{"$f":"K13+O13+S13+W13","v":{"v":0,"d":"R0.00"}},{"$f":"X13*C13","v":{"v":0,"d":"R0.00"}}]
[null,"400 kV Alpha – Tutuka 2",2,{"$nulls":4},{"$f":"H13","v":0},{"$f":"I13","v":0},0,{"v":0,"d":"R0.00"},{"$f":"L13","v":{"v":0,"d":"R0.00"}},{"$f":"M13","v":{"v":0,"d":"R0.00"}},{"$f":"N13","v":{"v":0,"d":"R0.00"}},{"$f":"L14+M14+N14","v":{"v":0,"d":"R0.00"}},{"$f":"P13","v":{"v":0,"d":"R0.00"}},{"$f":"Q13","v":{"v":0,"d":"R0.00"}},{"$f":"R13","v":{"v":0,"d":"R0.00"}},{"$f":"P14+Q14+R14","v":{"v":0,"d":"R0.00"}},{"$f":"T13","v":{"v":0,"d":"R0.00"}},{"$f":"U13","v":{"v":0,"d":"R0.00"}},{"$f":"V13","v":{"v":0,"d":"R0.00"}},null,{"$f":"K14+O14+S14+W14","v":{"v":0,"d":"R0.00"}},{"v":0,"d":"R0.00"}]
[null,"400 kV Alpha – Tutuka 3",2,{"$nulls":4},{"$f":"H14","v":0},{"$f":"I14","v":0},{"$f":"J14","v":0},{"v":0,"d":"R0.00"},{"$f":"L14","v":{"v":0,"d":"R0.00"}},{"$f":"M14","v":{"v":0,"d":"R0.00"}},{"$f":"N14","v":{"v":0,"d":"R0.00"}},{"v":0,"d":"R0.00"},{"$f":"P14","v":{"v":0,"d":"R0.00"}},{"$f":"Q14","v":{"v":0,"d":"R0.00"}},{"$f":"R14","v":{"v":0,"d":"R0.00"}},{"v":0,"d":"R0.00"},{"$f":"T14","v":{"v":0,"d":"R0.00"}},{"$f":"U14","v":{"v":0,"d":"R0.00"}},{"$f":"V14","v":{"v":0,"d":"R0.00"}},null,{"v":0,"d":"R0.00"},{"v":0,"d":"R0.00"}]
[null,"400 kV Alpha - Majuba 1",2,{"$nulls":4},0,0,0,{"v":0,"d":"R0.00"},{"v":0,"d":"R0.00"},{"v":0,"d":"R0.00"},{"v":0,"d":"R0.00"},{"v":0,"d":"R0.00"},{"v":0,"d":"R0.00"},{"v":0,"d":"R0.00"},{"v":0,"d":"R0.00"},null,{"v":0,"d":"R0.00"},{"v":0,"d":"R0.00"},{"v":0,"d":"R0.00"},{"$f":"T16+U16+V16","v":{"v":0,"d":"R0.00"}},{"$f":"K16+O16+S16+W16","v":{"v":0,"d":"R0.00"}},{"v":0,"d":"R0.00"}]
[null,"400 kV Majuba - Pegasus 1",2,{"$nulls":4},0,0,0,{"v":0,"d":"R0.00"},{"v":0,"d":"R0.00"},{"v":0,"d":"R0.00"},{"v":0,"d":"R0.00"},{"v":0,"d":"R0.00"},{"v":0,"d":"R0.00"},{"v":0,"d":"R0.00"},{"v":0,"d":"R0.00"},null,{"v":0,"d":"R0.00"},{"v":0,"d":"R0.00"},{"v":0,"d":"R0.00"},{"v":0,"d":"R0.00"},{"v":0,"d":"R0.00"},{"v":0,"d":"R0.00"}]
[null,"400 kV Majuba - Tutuka 2",2,{"$nulls":4},0,0,0,{"v":0,"d":"R0.00"},{"v":0,"d":"R0.00"},{"v":0,"d":"R0.00"},{"v":0,"d":"R0.00"},{"v":0,"d":"R0.00"},{"v":0,"d":"R0.00"},{"v":0,"d":"R0.00"},{"v":0,"d":"R0.00"},null,{"v":0,"d":"R0.00"},{"v":0,"d":"R0.00"},{"v":0,"d":"R0.00"},{"v":0,"d":"R0.00"},{"v":0,"d":"R0.00"},{"v":0,"d":"R0.00"}]
[null,"400 kV Camden - Sol 2",2,{"$nulls":4},0,0,0,{"v":0,"d":"R0.00"},{"v":0,"d":"R0.00"},{"v":0,"d":"R0.00"},{"v":0,"d":"R0.00"},{"v":0,"d":"R0.00"},{"v":0,"d":"R0.00"},{"v":0,"d":"R0.00"},{"v":0,"d":"R0.00"},{"v":0,"d":"R0.00"},{"v":0,"d":"R0.00"},{"v":0,"d":"R0.00"},{"v":0,"d":"R0.00"},null,{"v":0,"d":"R0.00"},{"v":0,"d":"R0.00"}]
[null,"400 kV Camden - Normandie 1",2,{"$nulls":4},0,0,0,{"v":0,"d":"R0.00"},{"v":0,"d":"R0.00"},{"v":0,"d":"R0.00"},{"v":0,"d":"R0.00"},{"v":0,"d":"R0.00"},{"v":0,"d":"R0.00"},{"v":0,"d":"R0.00"},{"v":0,"d":"R0.00"},null,{"v":0,"d":"R0.00"},{"v":0,"d":"R0.00"},{"v":0,"d":"R0.00"},{"v":0,"d":"R0.00"},{"v":0,"d":"R0.00"},{"v":0,"d":"R0.00"}]
[null,"400 kV Normandie - Umfolozi 1",2,{"$nulls":4},0,0,0,{"v":0,"d":"R0.00"},{"v":0,"d":"R0.00"},{"v":0,"d":"R0.00"},{"v":0,"d":"R0.00"},{"v":0,"d":"R0.00"},{"v":0,"d":"R0.00"},{"v":0,"d":"R0.00"},{"v":0,"d":"R0.00"},null,{"v":0,"d":"R0.00"},{"v":0,"d":"R0.00"},{"v":0,"d":"R0.00"},{"v":0,"d":"R0.00"},{"v":0,"d":"R0.00"},{"v":0,"d":"R0.00"}]
[null,"275 kV Esselen - Matla 1",2,{"$nulls":4},0,0,0,{"v":0,"d":"R0.00"},{"v":0,"d":"R0.00"},{"v":0,"d":"R0.00"},{"v":0,"d":"R0.00"},{"v":0,"d":"R0.00"},{"v":0,"d":"R0.00"},{"v":0,"d":"R0.00"},{"v":0,"d":"R0.00"},{"v":0,"d":"R0.00"},{"v":0,"d":"R0.00"},{"v":0,"d":"R0.00"},{"v":0,"d":"R0.00"},null,{"v":0,"d":"R0.00"},{"v":0,"d":"R0.00"}]
[null,"275 kV Camden - Komati 1",2,{"$nulls":4},0,0,0,{"v":0,"d":"R0.00"},{"v":0,"d":"R0.00"},{"v":0,"d":"R0.00"},{"v":0,"d":"R0.00"},{"v":0,"d":"R0.00"},{"v":0,"d":"R0.00"},{"v":0,"d":"R0.00"},{"v":0,"d":"R0.00"},{"v":0,"d":"R0.00"},{"v":0,"d":"R0.00"},{"v":0,"d":"R0.00"},{"v":0,"d":"R0.00"},null,{"v":0,"d":"R0.00"},{"v":0,"d":"R0.00"}]
[null,"400 kV Gumeni - Marathon 1",2,{"$nulls":4},0,0,0,{"v":0,"d":"R0.00"},{"v":0,"d":"R0.00"},{"v":0,"d":"R0.00"},{"v":0,"d":"R0.00"},{"v":0,"d":"R0.00"},{"v":0,"d":"R0.00"},{"v":0,"d":"R0.00"},{"v":0,"d":"R0.00"},null,{"v":0,"d":"R0.00"},{"v":0,"d":"R0.00"},{"v":0,"d":"R0.00"},{"v":0,"d":"R0.00"},{"v":0,"d":"R0.00"},{"v":0,"d":"R0.00"}]
[null,"275kV Jupiter - Croydon ",2,{"$nulls":4},0,0,0,{"v":0,"d":"R0.00"},{"v":0,"d":"R0.00"},{"v":0,"d":"R0.00"},{"v":0,"d":"R0.00"},{"v":0,"d":"R0.00"},{"v":0,"d":"R0.00"},{"v":0,"d":"R0.00"},{"v":0,"d":"R0.00"},{"v":0,"d":"R0.00"},{"v":0,"d":"R0.00"},{"v":0,"d":"R0.00"},{"v":0,"d":"R0.00"},null,{"v":0,"d":"R0.00"},{"v":0,"d":"R0.00"}]
[null,"275kV Ferrum - Olien 1",2,{"$nulls":4},0,0,0,{"v":0,"d":"R0.00"},{"v":0,"d":"R0.00"},{"v":0,"d":"R0.00"},{"v":0,"d":"R0.00"},{"v":0,"d":"R0.00"},{"v":0,"d":"R0.00"},{"v":0,"d":"R0.00"},{"v":0,"d":"R0.00"},{"v":0,"d":"R0.00"},{"v":0,"d":"R0.00"},{"v":0,"d":"R0.00"},{"v":0,"d":"R0.00"},null,{"v":0,"d":"R0.00"},{"v":0,"d":"R0.00"}]
[null,"275kV Ferrum - Olien 2",2,{"$nulls":4},0,0,0,{"v":0,"d":"R0.00"},{"v":0,"d":"R0.00"},{"v":0,"d":"R0.00"},{"v":0,"d":"R0.00"},{"v":0,"d":"R0.00"},{"v":0,"d":"R0.00"},{"v":0,"d":"R0.00"},{"v":0,"d":"R0.00"},{"v":0,"d":"R0.00"},{"v":0,"d":"R0.00"},{"v":0,"d":"R0.00"},{"v":0,"d":"R0.00"},null,{"v":0,"d":"R0.00"},{"v":0,"d":"R0.00"}]
[null,"275kV Apollo (Fdr 7) - Croydon (Fdr 1) 1",2,{"$nulls":4},0,0,0,{"v":0,"d":"R0.00"},{"v":0,"d":"R0.00"},{"v":0,"d":"R0.00"},{"v":0,"d":"R0.00"},{"v":0,"d":"R0.00"},{"v":0,"d":"R0.00"},{"v":0,"d":"R0.00"},{"v":0,"d":"R0.00"},{"v":0,"d":"R0.00"},{"v":0,"d":"R0.00"},{"v":0,"d":"R0.00"},{"v":0,"d":"R0.00"},null,{"v":0,"d":"R0.00"},{"v":0,"d":"R0.00"}]
[null,"275kV Brenner (Fdr 2) - Snowdon (Fdr 2 ) 1",2,{"$nulls":4},0,0,0,{"v":0,"d":"R0.00"},{"v":0,"d":"R0.00"},{"v":0,"d":"R0.00"},{"v":0,"d":"R0.00"},{"v":0,"d":"R0.00"},{"v":0,"d":"R0.00"},{"v":0,"d":"R0.00"},{"v":0,"d":"R0.00"},{"v":0,"d":"R0.00"},{"v":0,"d":"R0.00"},{"v":0,"d":"R0.00"},{"v":0,"d":"R0.00"},null,{"v":0,"d":"R0.00"},{"v":0,"d":"R0.00"}]
[null,"275kV Glockner (Fdr 3) - Verdun (Fdr 1) 1",2,{"$nulls":4},0,0,0,{"v":0,"d":"R0.00"},{"v":0,"d":"R0.00"},{"v":0,"d":"R0.00"},{"v":0,"d":"R0.00"},{"v":0,"d":"R0.00"},{"v":0,"d":"R0.00"},{"v":0,"d":"R0.00"},{"v":0,"d":"R0.00"},{"v":0,"d":"R0.00"},{"v":0,"d":"R0.00"},{"v":0,"d":"R0.00"},{"v":0,"d":"R0.00"},null,{"v":0,"d":"R0.00"},{"v":0,"d":"R0.00"}]
[null,"275kV Glockner (Fdr 4) - Verdun (Fdr 2) 2",2,{"$nulls":4},0,0,0,{"v":0,"d":"R0.00"},{"v":0,"d":"R0.00"},{"v":0,"d":"R0.00"},{"v":0,"d":"R0.00"},{"v":0,"d":"R0.00"},{"v":0,"d":"R0.00"},{"v":0,"d":"R0.00"},{"v":0,"d":"R0.00"},{"v":0,"d":"R0.00"},{"v":0,"d":"R0.00"},{"v":0,"d":"R0.00"},{"v":0,"d":"R0.00"},null,{"v":0,"d":"R0.00"},{"v":0,"d":"R0.00"}]
[null,"400kV Lulamisa (Fdr 1) - Pluto (Fdr 4) 1",2,{"$nulls":4},0,0,0,{"v":0,"d":"R0.00"},{"v":0,"d":"R0.00"},{"v":0,"d":"R0.00"},{"v":0,"d":"R0.00"},{"v":0,"d":"R0.00"},{"v":0,"d":"R0.00"},{"v":0,"d":"R0.00"},{"v":0,"d":"R0.00"},null,{"v":0,"d":"R0.00"},{"v":0,"d":"R0.00"},{"v":0,"d":"R0.00"},{"v":0,"d":"R0.00"},{"v":0,"d":"R0.00"},{"v":0,"d":"R0.00"}]
[null,"275kV Olympus (Fdr 2 ) - Scaffel (Fdr 4) 1",2,{"$nulls":4},0,0,0,{"v":0,"d":"R0.00"},{"v":0,"d":"R0.00"},{"v":0,"d":"R0.00"},{"v":0,"d":"R0.00"},{"v":0,"d":"R0.00"},{"v":0,"d":"R0.00"},{"v":0,"d":"R0.00"},{"v":0,"d":"R0.00"},{"v":0,"d":"R0.00"},{"v":0,"d":"R0.00"},{"v":0,"d":"R0.00"},{"v":0,"d":"R0.00"},null,{"v":0,"d":"R0.00"},{"v":0,"d":"R0.00"}]
[null,"275kV Olympus (Fdr 4) - Rigi (Fdr 1 ) 1",2,{"$nulls":4},0,0,0,{"v":0,"d":"R0.00"},{"v":0,"d":"R0.00"},{"v":0,"d":"R0.00"},{"v":0,"d":"R0.00"},{"v":0,"d":"R0.00"},{"v":0,"d":"R0.00"},{"v":0,"d":"R0.00"},{"v":0,"d":"R0.00"},{"v":0,"d":"R0.00"},{"v":0,"d":"R0.00"},{"v":0,"d":"R0.00"},{"v":0,"d":"R0.00"},null,{"v":0,"d":"R0.00"},{"v":0,"d":"R0.00"}]
[null,"275kV Lomond (Fdr 4) - Minerva (Fdr 2 ) 1",2,{"$nulls":4},0,0,0,{"v":0,"d":"R0.00"},{"v":0,"d":"R0.00"},{"v":0,"d":"R0.00"},{"v":0,"d":"R0.00"},{"v":0,"d":"R0.00"},{"v":0,"d":"R0.00"},{"v":0,"d":"R0.00"},{"v":0,"d":"R0.00"},{"v":0,"d":"R0.00"},{"v":0,"d":"R0.00"},{"v":0,"d":"R0.00"},{"v":0,"d":"R0.00"},null,{"v":0,"d":"R0.00"},{"v":0,"d":"R0.00"}]
[null,"275kV Lomond (Fdr 6) - Minerva (Fdr 1 ) 2",2,{"$nulls":4},0,0,0,{"v":0,"d":"R0.00"},{"v":0,"d":"R0.00"},{"v":0,"d":"R0.00"},{"v":0,"d":"R0.00"},{"v":0,"d":"R0.00"},{"v":0,"d":"R0.00"},{"v":0,"d":"R0.00"},{"v":0,"d":"R0.00"},{"v":0,"d":"R0.00"},{"v":0,"d":"R0.00"},{"v":0,"d":"R0.00"},{"v":0,"d":"R0.00"},null,{"v":0,"d":"R0.00"},{"v":0,"d":"R0.00"}]
[null,"132kV Harrismith - Tugela ",2,{"$nulls":4},0,0,0,{"v":0,"d":"R0.00"},{"v":0,"d":"R0.00"},{"v":0,"d":"R0.00"},{"v":0,"d":"R0.00"},{"v":0,"d":"R0.00"},{"v":0,"d":"R0.00"},{"v":0,"d":"R0.00"},{"v":0,"d":"R0.00"},{"v":0,"d":"R0.00"},{"v":0,"d":"R0.00"},{"v":0,"d":"R0.00"},{"v":0,"d":"R0.00"},null,{"v":0,"d":"R0.00"},{"v":0,"d":"R0.00"}]
[null,"400kV Droerivier - Gamma ",2,{"$nulls":4},0,0,0,{"v":0,"d":"R0.00"},{"v":0,"d":"R0.00"},{"v":0,"d":"R0.00"},{"v":0,"d":"R0.00"},{"v":0,"d":"R0.00"},{"v":0,"d":"R0.00"},{"v":0,"d":"R0.00"},{"v":0,"d":"R0.00"},null,{"v":0,"d":"R0.00"},{"v":0,"d":"R0.00"},{"v":0,"d":"R0.00"},{"v":0,"d":"R0.00"},{"v":0,"d":"R0.00"},{"v":0,"d":"R0.00"}]
[null,"400kV Gamma - Hydra",2,{"$nulls":4},0,0,0,{"v":0,"d":"R0.00"},{"v":0,"d":"R0.00"},{"v":0,"d":"R0.00"},{"v":0,"d":"R0.00"},{"v":0,"d":"R0.00"},{"v":0,"d":"R0.00"},{"v":0,"d":"R0.00"},{"v":0,"d":"R0.00"},null,{"v":0,"d":"R0.00"},{"v":0,"d":"R0.00"},{"v":0,"d":"R0.00"},{"v":0,"d":"R0.00"},{"v":0,"d":"R0.00"},{"v":0,"d":"R0.00"}]
[null,"400kV Pembroke - Poseidon 1",2,{"$nulls":4},0,0,0,{"v":0,"d":"R0.00"},{"v":0,"d":"R0.00"},{"v":0,"d":"R0.00"},{"v":0,"d":"R0.00"},{"v":0,"d":"R0.00"},{"v":0,"d":"R0.00"},{"v":0,"d":"R0.00"},{"v":0,"d":"R0.00"},null,{"v":0,"d":"R0.00"},{"v":0,"d":"R0.00"},{"v":0,"d":"R0.00"},{"v":0,"d":"R0.00"},{"v":0,"d":"R0.00"},{"v":0,"d":"R0.00"}]
[null,"400kV Ariadne - Hector (Refurb)",2,{"$nulls":4},0,0,0,{"v":0,"d":"R0.00"},{"v":0,"d":"R0.00"},{"v":0,"d":"R0.00"},{"v":0,"d":"R0.00"},{"v":0,"d":"R0.00"},{"v":0,"d":"R0.00"},{"v":0,"d":"R0.00"},{"v":0,"d":"R0.00"},null,{"v":0,"d":"R0.00"},{"v":0,"d":"R0.00"},{"v":0,"d":"R0.00"},{"v":0,"d":"R0.00"},{"v":0,"d":"R0.00"},{"v":0,"d":"R0.00"}]
[null,"400kV Ariadne - Eros 2 (New)",2,{"$nulls":4},0,0,0,{"v":0,"d":"R0.00"},{"v":0,"d":"R0.00"},{"v":0,"d":"R0.00"},{"v":0,"d":"R0.00"},{"v":0,"d":"R0.00"},{"v":0,"d":"R0.00"},{"v":0,"d":"R0.00"},{"v":0,"d":"R0.00"},null,{"v":0,"d":"R0.00"},{"v":0,"d":"R0.00"},{"v":0,"d":"R0.00"},{"v":0,"d":"R0.00"},{"v":0,"d":"R0.00"},{"v":0,"d":"R0.00"}]
[null,"400kV Hermes - Mookodi",2,{"$nulls":4},0,0,0,{"v":0,"d":"R0.00"},{"v":0,"d":"R0.00"},{"v":0,"d":"R0.00"},{"v":0,"d":"R0.00"},{"v":0,"d":"R0.00"},{"v":0,"d":"R0.00"},{"v":0,"d":"R0.00"},{"v":0,"d":"R0.00"},null,{"v":0,"d":"R0.00"},{"v":0,"d":"R0.00"},{"v":0,"d":"R0.00"},{"v":0,"d":"R0.00"},{"v":0,"d":"R0.00"},{"v":0,"d":"R0.00"}]
[null,"275kV Ararat - Spitskop 1",2,{"$nulls":4},0,0,0,{"v":0,"d":"R0.00"},{"v":0,"d":"R0.00"},{"v":0,"d":"R0.00"},{"v":0,"d":"R0.00"},{"v":0,"d":"R0.00"},{"v":0,"d":"R0.00"},{"v":0,"d":"R0.00"},{"v":0,"d":"R0.00"},{"v":0,"d":"R0.00"},{"v":0,"d":"R0.00"},{"v":0,"d":"R0.00"},{"v":0,"d":"R0.00"},null,{"v":0,"d":"R0.00"},{"v":0,"d":"R0.00"}]
[null,"275kV Ararat - Spitskop 2",2,{"$nulls":4},0,0,0,{"v":0,"d":"R0.00"},{"v":0,"d":"R0.00"},{"v":0,"d":"R0.00"},{"v":0,"d":"R0.00"},{"v":0,"d":"R0.00"},{"v":0,"d":"R0.00"},{"v":0,"d":"R0.00"},{"v":0,"d":"R0.00"},{"v":0,"d":"R0.00"},{"v":0,"d":"R0.00"},{"v":0,"d":"R0.00"},{"v":0,"d":"R0.00"},null,{"v":0,"d":"R0.00"},{"$f":"X45*C45","v":{"v":0,"d":"R0.00"}}]
[null,"400kV Aggeneis - Aries ",2,{"$nulls":4},0,0,0,{"v":0,"d":"R0.00"},{"v":0,"d":"R0.00"},{"v":0,"d":"R0.00"},{"v":0,"d":"R0.00"},{"v":0,"d":"R0.00"},{"v":0,"d":"R0.00"},{"v":0,"d":"R0.00"},{"v":0,"d":"R0.00"},null,{"v":0,"d":"R0.00"},{"v":0,"d":"R0.00"},{"v":0,"d":"R0.00"},{"v":0,"d":"R0.00"},{"v":0,"d":"R0.00"},{"v":0,"d":"R0.00"}]
[null,"400kV Ankerlik - Aurora 1",2,{"$nulls":4},0,0,0,{"v":0,"d":"R0.00"},{"v":0,"d":"R0.00"},{"v":0,"d":"R0.00"},{"v":0,"d":"R0.00"},{"v":0,"d":"R0.00"},{"v":0,"d":"R0.00"},{"v":0,"d":"R0.00"},{"v":0,"d":"R0.00"},null,{"v":0,"d":"R0.00"},{"v":0,"d":"R0.00"},{"v":0,"d":"R0.00"},{"v":0,"d":"R0.00"},{"v":0,"d":"R0.00"},{"v":0,"d":"R0.00"}]
[null,"400kV Ankerlik - Aurora 2",2,{"$nulls":4},0,0,0,{"v":0,"d":"R0.00"},{"v":0,"d":"R0.00"},{"v":0,"d":"R0.00"},{"v":0,"d":"R0.00"},{"v":0,"d":"R0.00"},{"v":0,"d":"R0.00"},{"v":0,"d":"R0.00"},{"v":0,"d":"R0.00"},null,{"v":0,"d":"R0.00"},{"v":0,"d":"R0.00"},{"v":0,"d":"R0.00"},{"v":0,"d":"R0.00"},{"v":0,"d":"R0.00"},{"v":0,"d":"R0.00"}]
[null,"400kV Koeberg - Stikland",2,{"$nulls":4},0,0,0,{"v":0,"d":"R0.00"},{"v":0,"d":"R0.00"},{"v":0,"d":"R0.00"},{"v":0,"d":"R0.00"},{"v":0,"d":"R0.00"},{"v":0,"d":"R0.00"},{"v":0,"d":"R0.00"},{"v":0,"d":"R0.00"},null,{"v":0,"d":"R0.00"},{"v":0,"d":"R0.00"},{"v":0,"d":"R0.00"},{"v":0,"d":"R0.00"},{"v":0,"d":"R0.00"},{"v":0,"d":"R0.00"}]
[null,"275kV Hera - Westgate ",2,{"$nulls":4},0,0,0,{"v":0,"d":"R0.00"},{"v":0,"d":"R0.00"},{"v":0,"d":"R0.00"},{"v":0,"d":"R0.00"},{"v":0,"d":"R0.00"},{"v":0,"d":"R0.00"},{"v":0,"d":"R0.00"},{"v":0,"d":"R0.00"},{"v":0,"d":"R0.00"},{"v":0,"d":"R0.00"},{"v":0,"d":"R0.00"},{"v":0,"d":"R0.00"},null,{"v":0,"d":"R0.00"},{"v":0,"d":"R0.00"}]
[null,"400kV Grootvlei - Zeus 1",2,{"$nulls":4},0,0,0,{"v":0,"d":"R0.00"},{"v":0,"d":"R0.00"},{"v":0,"d":"R0.00"},{"v":0,"d":"R0.00"},{"v":0,"d":"R0.00"},{"v":0,"d":"R0.00"},{"v":0,"d":"R0.00"},{"v":0,"d":"R0.00"},null,{"v":0,"d":"R0.00"},{"v":0,"d":"R0.00"},{"v":0,"d":"R0.00"},{"v":0,"d":"R0.00"},{"v":0,"d":"R0.00"},{"v":0,"d":"R0.00"}]
[null,"400kV Grootvlei - Zeus 2",2,{"$nulls":4},0,0,0,{"v":0,"d":"R0.00"},{"v":0,"d":"R0.00"},{"v":0,"d":"R0.00"},{"v":0,"d":"R0.00"},{"v":0,"d":"R0.00"},{"v":0,"d":"R0.00"},{"v":0,"d":"R0.00"},{"v":0,"d":"R0.00"},null,{"v":0,"d":"R0.00"},{"v":0,"d":"R0.00"},{"v":0,"d":"R0.00"},{"v":0,"d":"R0.00"},{"v":0,"d":"R0.00"},{"v":0,"d":"R0.00"}]
[null,"400kV Grootvlei - Theseus 1",2,{"$nulls":4},0,0,0,{"v":0,"d":"R0.00"},{"v":0,"d":"R0.00"},{"v":0,"d":"R0.00"},{"v":0,"d":"R0.00"},{"v":0,"d":"R0.00"},{"v":0,"d":"R0.00"},{"v":0,"d":"R0.00"},{"v":0,"d":"R0.00"},null,{"v":0,"d":"R0.00"},{"v":0,"d":"R0.00"},{"v":0,"d":"R0.00"},{"v":0,"d":"R0.00"},{"v":0,"d":"R0.00"},{"v":0,"d":"R0.00"}]
[null,"400kV Grootvlei - Hera 2",2,{"$nulls":4},0,0,0,{"v":0,"d":"R0.00"},{"v":0,"d":"R0.00"},{"v":0,"d":"R0.00"},{"v":0,"d":"R0.00"},{"v":0,"d":"R0.00"},{"v":0,"d":"R0.00"},{"v":0,"d":"R0.00"},{"v":0,"d":"R0.00"},null,{"v":0,"d":"R0.00"},{"v":0,"d":"R0.00"},{"v":0,"d":"R0.00"},{"v":0,"d":"R0.00"},{"v":0,"d":"R0.00"},{"v":0,"d":"R0.00"}]
[null,"400kV Grootvlei - Perseus 1",2,{"$nulls":4},0,0,0,{"v":0,"d":"R0.00"},{"v":0,"d":"R0.00"},{"v":0,"d":"R0.00"},{"v":0,"d":"R0.00"},{"v":0,"d":"R0.00"},{"v":0,"d":"R0.00"},{"v":0,"d":"R0.00"},{"v":0,"d":"R0.00"},null,{"v":0,"d":"R0.00"},{"v":0,"d":"R0.00"},{"v":0,"d":"R0.00"},{"v":0,"d":"R0.00"},{"v":0,"d":"R0.00"},{"v":0,"d":"R0.00"}]
[null,"400kV Grootvlei - Leander ",2,{"$nulls":4},0,0,0,{"v":0,"d":"R0.00"},{"v":0,"d":"R0.00"},{"v":0,"d":"R0.00"},{"v":0,"d":"R0.00"},{"v":0,"d":"R0.00"},{"v":0,"d":"R0.00"},{"v":0,"d":"R0.00"},{"v":0,"d":"R0.00"},null,{"v":0,"d":"R0.00"},{"v":0,"d":"R0.00"},{"v":0,"d":"R0.00"},{"v":0,"d":"R0.00"},{"v":0,"d":"R0.00"},{"v":0,"d":"R0.00"}]
[null,"400kV Grootvlei - Matla ",2,{"$nulls":4},0,0,0,{"v":0,"d":"R0.00"},{"v":0,"d":"R0.00"},{"v":0,"d":"R0.00"},{"v":0,"d":"R0.00"},{"v":0,"d":"R0.00"},{"v":0,"d":"R0.00"},{"v":0,"d":"R0.00"},{"v":0,"d":"R0.00"},null,{"v":0,"d":"R0.00"},{"v":0,"d":"R0.00"},{"v":0,"d":"R0.00"},{"v":0,"d":"R0.00"},{"v":0,"d":"R0.00"},{"v":0,"d":"R0.00"}]
[null,"275kV Everest - Perseus 1",2,{"$nulls":4},0,0,0,{"v":0,"d":"R0.00"},{"v":0,"d":"R0.00"},{"v":0,"d":"R0.00"},{"v":0,"d":"R0.00"},{"v":0,"d":"R0.00"},{"v":0,"d":"R0.00"},{"v":0,"d":"R0.00"},{"v":0,"d":"R0.00"},{"v":0,"d":"R0.00"},{"v":0,"d":"R0.00"},{"v":0,"d":"R0.00"},{"v":0,"d":"R0.00"},null,{"v":0,"d":"R0.00"},{"v":0,"d":"R0.00"}]
[null,"275kV Everest - Snowdon 1",2,{"$nulls":4},0,0,0,{"v":0,"d":"R0.00"},{"v":0,"d":"R0.00"},{"v":0,"d":"R0.00"},{"v":0,"d":"R0.00"},{"v":0,"d":"R0.00"},{"v":0,"d":"R0.00"},{"v":0,"d":"R0.00"},{"v":0,"d":"R0.00"},{"v":0,"d":"R0.00"},{"v":0,"d":"R0.00"},{"v":0,"d":"R0.00"},{"v":0,"d":"R0.00"},null,{"v":0,"d":"R0.00"},{"v":0,"d":"R0.00"}]
[null,"275kV Boundary - Perseus 1",2,{"$nulls":4},0,0,0,{"v":0,"d":"R0.00"},{"v":0,"d":"R0.00"},{"v":0,"d":"R0.00"},{"v":0,"d":"R0.00"},{"v":0,"d":"R0.00"},{"v":0,"d":"R0.00"},{"v":0,"d":"R0.00"},{"v":0,"d":"R0.00"},{"v":0,"d":"R0.00"},{"v":0,"d":"R0.00"},{"v":0,"d":"R0.00"},{"v":0,"d":"R0.00"},null,{"v":0,"d":"R0.00"},{"v":0,"d":"R0.00"}]
[null,"275kV Boundary - Perseus 2",2,{"$nulls":4},0,0,0,{"v":0,"d":"R0.00"},{"v":0,"d":"R0.00"},{"v":0,"d":"R0.00"},{"v":0,"d":"R0.00"},{"v":0,"d":"R0.00"},{"v":0,"d":"R0.00"},{"v":0,"d":"R0.00"},{"v":0,"d":"R0.00"},{"v":0,"d":"R0.00"},{"v":0,"d":"R0.00"},{"v":0,"d":"R0.00"},{"v":0,"d":"R0.00"},null,{"v":0,"d":"R0.00"},{"v":0,"d":"R0.00"}]
[null,"400kV Delphi - Beta 1",2,{"$nulls":4},0,0,0,{"v":0,"d":"R0.00"},{"v":0,"d":"R0.00"},{"v":0,"d":"R0.00"},{"v":0,"d":"R0.00"},{"v":0,"d":"R0.00"},{"v":0,"d":"R0.00"},{"v":0,"d":"R0.00"},{"v":0,"d":"R0.00"},null,{"v":0,"d":"R0.00"},{"v":0,"d":"R0.00"},{"v":0,"d":"R0.00"},{"v":0,"d":"R0.00"},{"v":0,"d":"R0.00"},{"v":0,"d":"R0.00"}]
[null,"400kV Luckhoff - Beta 1",2,{"$nulls":4},0,0,0,{"v":0,"d":"R0.00"},{"v":0,"d":"R0.00"},{"v":0,"d":"R0.00"},{"v":0,"d":"R0.00"},{"v":0,"d":"R0.00"},{"v":0,"d":"R0.00"},{"v":0,"d":"R0.00"},{"v":0,"d":"R0.00"},null,{"v":0,"d":"R0.00"},{"v":0,"d":"R0.00"},{"v":0,"d":"R0.00"},{"v":0,"d":"R0.00"},{"v":0,"d":"R0.00"},{"v":0,"d":"R0.00"}]
[null,"400kV Luckhoff - Perseus 2",2,{"$nulls":4},0,0,0,{"v":0,"d":"R0.00"},{"v":0,"d":"R0.00"},{"v":0,"d":"R0.00"},{"v":0,"d":"R0.00"},{"v":0,"d":"R0.00"},{"v":0,"d":"R0.00"},{"v":0,"d":"R0.00"},{"v":0,"d":"R0.00"},null,{"v":0,"d":"R0.00"},{"v":0,"d":"R0.00"},{"v":0,"d":"R0.00"},{"v":0,"d":"R0.00"},{"v":0,"d":"R0.00"},{"v":0,"d":"R0.00"}]
[null,"400kV Luckhoff - Perseus 3",2,{"$nulls":4},0,0,0,{"v":0,"d":"R0.00"},{"v":0,"d":"R0.00"},{"v":0,"d":"R0.00"},{"v":0,"d":"R0.00"},{"v":0,"d":"R0.00"},{"v":0,"d":"R0.00"},{"v":0,"d":"R0.00"},{"v":0,"d":"R0.00"},null,{"v":0,"d":"R0.00"},{"v":0,"d":"R0.00"},{"v":0,"d":"R0.00"},{"v":0,"d":"R0.00"},{"v":0,"d":"R0.00"},{"v":0,"d":"R0.00"}]
[null,"275kV Makalu - Scaffell 1",2,{"$nulls":4},0,0,0,{"v":0,"d":"R0.00"},{"v":0,"d":"R0.00"},{"v":0,"d":"R0.00"},{"v":0,"d":"R0.00"},{"v":0,"d":"R0.00"},{"v":0,"d":"R0.00"},{"v":0,"d":"R0.00"},{"v":0,"d":"R0.00"},{"v":0,"d":"R0.00"},{"v":0,"d":"R0.00"},{"v":0,"d":"R0.00"},{"v":0,"d":"R0.00"},null,{"v":0,"d":"R0.00"},{"v":0,"d":"R0.00"}]
[null,"275kV Scaffell - Snowdon 1",2,{"$nulls":4},0,0,0,{"v":0,"d":"R0.00"},{"v":0,"d":"R0.00"},{"v":0,"d":"R0.00"},{"v":0,"d":"R0.00"},{"v":0,"d":"R0.00"},{"v":0,"d":"R0.00"},{"v":0,"d":"R0.00"},{"v":0,"d":"R0.00"},{"v":0,"d":"R0.00"},{"v":0,"d":"R0.00"},{"v":0,"d":"R0.00"},{"v":0,"d":"R0.00"},null,{"v":0,"d":"R0.00"},{"v":0,"d":"R0.00"}]
[null,"275kV Snowdon - Lethabo1",2,{"$nulls":4},0,0,0,{"v":0,"d":"R0.00"},{"v":0,"d":"R0.00"},{"v":0,"d":"R0.00"},{"v":0,"d":"R0.00"},{"v":0,"d":"R0.00"},{"v":0,"d":"R0.00"},{"v":0,"d":"R0.00"},{"v":0,"d":"R0.00"},{"v":0,"d":"R0.00"},{"v":0,"d":"R0.00"},{"v":0,"d":"R0.00"},{"v":0,"d":"R0.00"},null,{"v":0,"d":"R0.00"},{"v":0,"d":"R0.00"}]
[null,"400kV Beta - Seremula",2,{"$nulls":4},0,0,0,{"v":0,"d":"R0.00"},{"v":0,"d":"R0.00"},{"v":0,"d":"R0.00"},{"v":0,"d":"R0.00"},{"v":0,"d":"R0.00"},{"v":0,"d":"R0.00"},{"v":0,"d":"R0.00"},{"v":0,"d":"R0.00"},null,{"v":0,"d":"R0.00"},{"v":0,"d":"R0.00"},{"v":0,"d":"R0.00"},{"v":0,"d":"R0.00"},{"v":0,"d":"R0.00"},{"v":0,"d":"R0.00"}]
[null,"275kV Harvard - Merapi 1",2,{"$nulls":4},0,0,0,{"v":0,"d":"R0.00"},{"v":0,"d":"R0.00"},{"v":0,"d":"R0.00"},{"v":0,"d":"R0.00"},{"v":0,"d":"R0.00"},{"v":0,"d":"R0.00"},{"v":0,"d":"R0.00"},{"v":0,"d":"R0.00"},{"v":0,"d":"R0.00"},{"v":0,"d":"R0.00"},{"v":0,"d":"R0.00"},{"v":0,"d":"R0.00"},null,{"v":0,"d":"R0.00"},{"v":0,"d":"R0.00"}]
[null,"275kV Nevis (4) - Pieterboth (2) 2",2,{"$nulls":4},0,0,0,{"v":0,"d":"R0.00"},{"v":0,"d":"R0.00"},{"v":0,"d":"R0.00"},{"v":0,"d":"R0.00"},{"v":0,"d":"R0.00"},{"v":0,"d":"R0.00"},{"v":0,"d":"R0.00"},{"v":0,"d":"R0.00"},{"v":0,"d":"R0.00"},{"v":0,"d":"R0.00"},{"v":0,"d":"R0.00"},{"v":0,"d":"R0.00"},null,{"v":0,"d":"R0.00"},{"v":0,"d":"R0.00"}]
[null,"275kV Nevis (4) - Snowdon (6) 4",2,{"$nulls":4},0,0,0,{"v":0,"d":"R0.00"},{"v":0,"d":"R0.00"},{"v":0,"d":"R0.00"},{"v":0,"d":"R0.00"},{"v":0,"d":"R0.00"},{"v":0,"d":"R0.00"},{"v":0,"d":"R0.00"},{"v":0,"d":"R0.00"},{"v":0,"d":"R0.00"},{"v":0,"d":"R0.00"},{"v":0,"d":"R0.00"},{"v":0,"d":"R0.00"},null,{"v":0,"d":"R0.00"},{"v":0,"d":"R0.00"}]
[null,"275kV Nevis (4) - Matla (5) 4",2,{"$nulls":4},0,0,0,{"v":0,"d":"R0.00"},{"v":0,"d":"R0.00"},{"v":0,"d":"R0.00"},{"v":0,"d":"R0.00"},{"v":0,"d":"R0.00"},{"v":0,"d":"R0.00"},{"v":0,"d":"R0.00"},{"v":0,"d":"R0.00"},{"v":0,"d":"R0.00"},{"v":0,"d":"R0.00"},{"v":0,"d":"R0.00"},{"v":0,"d":"R0.00"},null,{"v":0,"d":"R0.00"},{"v":0,"d":"R0.00"}]
[null,"275kV Nevis (4) - Matla (5) 5",2,{"$nulls":4},0,0,0,{"v":0,"d":"R0.00"},{"v":0,"d":"R0.00"},{"v":0,"d":"R0.00"},{"v":0,"d":"R0.00"},{"v":0,"d":"R0.00"},{"v":0,"d":"R0.00"},{"v":0,"d":"R0.00"},{"v":0,"d":"R0.00"},{"v":0,"d":"R0.00"},{"v":0,"d":"R0.00"},{"v":0,"d":"R0.00"},{"v":0,"d":"R0.00"},null,{"v":0,"d":"R0.00"},{"v":0,"d":"R0.00"}]
[null,"275kV Hera - Pluto",2,{"$nulls":4},0,0,0,{"v":0,"d":"R0.00"},{"v":0,"d":"R0.00"},{"v":0,"d":"R0.00"},{"v":0,"d":"R0.00"},{"v":0,"d":"R0.00"},{"v":0,"d":"R0.00"},{"v":0,"d":"R0.00"},{"v":0,"d":"R0.00"},{"v":0,"d":"R0.00"},{"v":0,"d":"R0.00"},{"v":0,"d":"R0.00"},{"v":0,"d":"R0.00"},null,{"v":0,"d":"R0.00"},{"v":0,"d":"R0.00"}]
[null,"275kV Hera - Watershed",2,{"$nulls":4},0,0,0,{"v":0,"d":"R0.00"},{"v":0,"d":"R0.00"},{"v":0,"d":"R0.00"},{"v":0,"d":"R0.00"},{"v":0,"d":"R0.00"},{"v":0,"d":"R0.00"},{"v":0,"d":"R0.00"},{"v":0,"d":"R0.00"},{"v":0,"d":"R0.00"},{"v":0,"d":"R0.00"},{"v":0,"d":"R0.00"},{"v":0,"d":"R0.00"},null,{"v":0,"d":"R0.00"},{"v":0,"d":"R0.00"}]
[null,"275kV Bloukrans - Venus 2",2,{"$nulls":4},0,0,0,{"$f":"H77+I77+J77","v":{"v":0,"d":"R0.00"}},{"v":0,"d":"R0.00"},{"v":0,"d":"R0.00"},{"v":0,"d":"R0.00"},{"v":0,"d":"R0.00"},{"v":0,"d":"R0.00"},{"v":0,"d":"R0.00"},{"v":0,"d":"R0.00"},{"v":0,"d":"R0.00"},{"v":0,"d":"R0.00"},{"v":0,"d":"R0.00"},{"v":0,"d":"R0.00"},null,{"v":0,"d":"R0.00"},{"$f":"X77*C77","v":{"v":0,"d":"R0.00"}}]
[null,"275kV Bloukrans - Danskraal 1",2,{"$nulls":4},0,0,0,{"v":0,"d":"R0.00"},{"v":0,"d":"R0.00"},{"v":0,"d":"R0.00"},{"v":0,"d":"R0.00"},{"$f":"L78+M78+N78","v":{"v":0,"d":"R0.00"}},{"v":0,"d":"R0.00"},{"v":0,"d":"R0.00"},{"v":0,"d":"R0.00"},{"$f":"P78+Q78+R78","v":{"v":0,"d":"R0.00"}},{"v":0,"d":"R0.00"},{"v":0,"d":"R0.00"},{"v":0,"d":"R0.00"},null,{"$f":"K78+O78+S78+W78","v":{"v":0,"d":"R0.00"}},{"v":0,"d":"R0.00"}]
[null,"275kV Hector - Illovo 1",2,{"$nulls":4},{"$f":"H78","v":0},{"$f":"I78","v":0},{"$f":"J78","v":0},{"v":0,"d":"R0.00"},{"$f":"L78","v":{"v":0,"d":"R0.00"}},{"$f":"M78","v":{"v":0,"d":"R0.00"}},{"$f":"N78","v":{"v":0,"d":"R0.00"}},{"v":0,"d":"R0.00"},{"$f":"P78","v":{"v":0,"d":"R0.00"}},{"$f":"Q78","v":{"v":0,"d":"R0.00"}},{"$f":"R78","v":{"v":0,"d":"R0.00"}},{"v":0,"d":"R0.00"},{"$f":"T78","v":{"v":0,"d":"R0.00"}},{"$f":"U78","v":{"v":0,"d":"R0.00"}},{"$f":"V78","v":{"v":0,"d":"R0.00"}},null,{"v":0,"d":"R0.00"},{"v":0,"d":"R0.00"}]
[null,"275kV Mersey - Hector 1",2,{"$nulls":4},0,0,0,{"v":0,"d":"R0.00"},{"v":0,"d":"R0.00"},{"v":0,"d":"R0.00"},{"v":0,"d":"R0.00"},{"v":0,"d":"R0.00"},{"v":0,"d":"R0.00"},{"v":0,"d":"R0.00"},{"v":0,"d":"R0.00"},{"v":0,"d":"R0.00"},{"v":0,"d":"R0.00"},{"v":0,"d":"R0.00"},{"v":0,"d":"R0.00"},null,{"v":0,"d":"R0.00"},{"v":0,"d":"R0.00"}]
[null,"275kV Tugela - Venus 1",2,{"$nulls":4},0,0,0,{"v":0,"d":"R0.00"},{"v":0,"d":"R0.00"},{"v":0,"d":"R0.00"},{"v":0,"d":"R0.00"},{"v":0,"d":"R0.00"},{"v":0,"d":"R0.00"},{"v":0,"d":"R0.00"},{"v":0,"d":"R0.00"},{"v":0,"d":"R0.00"},{"v":0,"d":"R0.00"},{"v":0,"d":"R0.00"},{"v":0,"d":"R0.00"},null,{"v":0,"d":"R0.00"},{"v":0,"d":"R0.00"}]
[null,"275kV Illovo - Georgedale 2",2,{"$nulls":4},0,0,0,{"v":0,"d":"R0.00"},{"v":0,"d":"R0.00"},{"v":0,"d":"R0.00"},{"v":0,"d":"R0.00"},{"v":0,"d":"R0.00"},{"v":0,"d":"R0.00"},{"v":0,"d":"R0.00"},{"v":0,"d":"R0.00"},{"v":0,"d":"R0.00"},{"v":0,"d":"R0.00"},{"v":0,"d":"R0.00"},{"v":0,"d":"R0.00"},null,{"v":0,"d":"R0.00"},{"v":0,"d":"R0.00"}]
[null,"400kV Ariadne - Venus 1",2,{"$nulls":4},0,0,0,{"v":0,"d":"R0.00"},{"v":0,"d":"R0.00"},{"v":0,"d":"R0.00"},{"v":0,"d":"R0.00"},{"v":0,"d":"R0.00"},{"v":0,"d":"R0.00"},{"v":0,"d":"R0.00"},{"v":0,"d":"R0.00"},null,{"v":0,"d":"R0.00"},{"v":0,"d":"R0.00"},{"v":0,"d":"R0.00"},{"$f":"T83+U83+V83","v":{"v":0,"d":"R0.00"}},{"v":0,"d":"R0.00"},{"v":0,"d":"R0.00"}]
[null,"400kV Ariadne - Hector 1",2,{"$nulls":4},0,0,0,{"v":0,"d":"R0.00"},{"v":0,"d":"R0.00"},{"v":0,"d":"R0.00"},{"v":0,"d":"R0.00"},{"v":0,"d":"R0.00"},{"v":0,"d":"R0.00"},{"v":0,"d":"R0.00"},{"v":0,"d":"R0.00"},null,{"v":0,"d":"R0.00"},{"v":0,"d":"R0.00"},{"v":0,"d":"R0.00"},{"v":0,"d":"R0.00"},{"v":0,"d":"R0.00"},{"v":0,"d":"R0.00"}]
[null,"400kV Ariadne - Eros 1",2,{"$nulls":4},0,0,0,{"v":0,"d":"R0.00"},{"v":0,"d":"R0.00"},{"v":0,"d":"R0.00"},{"v":0,"d":"R0.00"},{"v":0,"d":"R0.00"},{"v":0,"d":"R0.00"},{"v":0,"d":"R0.00"},{"v":0,"d":"R0.00"},null,{"v":0,"d":"R0.00"},{"v":0,"d":"R0.00"},{"v":0,"d":"R0.00"},{"v":0,"d":"R0.00"},{"v":0,"d":"R0.00"},{"v":0,"d":"R0.00"}]
[null,"400kV Athene - Umfolozi 1",2,{"$nulls":4},0,0,0,{"v":0,"d":"R0.00"},{"v":0,"d":"R0.00"},{"v":0,"d":"R0.00"},{"v":0,"d":"R0.00"},{"v":0,"d":"R0.00"},{"v":0,"d":"R0.00"},{"v":0,"d":"R0.00"},{"v":0,"d":"R0.00"},null,{"v":0,"d":"R0.00"},{"v":0,"d":"R0.00"},{"v":0,"d":"R0.00"},{"v":0,"d":"R0.00"},{"v":0,"d":"R0.00"},{"v":0,"d":"R0.00"}]
[null,"400kV Athene - Pegasus 1",2,{"$nulls":4},0,0,0,{"v":0,"d":"R0.00"},{"v":0,"d":"R0.00"},{"v":0,"d":"R0.00"},{"v":0,"d":"R0.00"},{"v":0,"d":"R0.00"},{"v":0,"d":"R0.00"},{"v":0,"d":"R0.00"},{"v":0,"d":"R0.00"},null,{"v":0,"d":"R0.00"},{"v":0,"d":"R0.00"},{"v":0,"d":"R0.00"},{"v":0,"d":"R0.00"},{"v":0,"d":"R0.00"},{"v":0,"d":"R0.00"}]
[null,"400kV Athene - Pegasus 2",2,{"$nulls":4},0,0,0,{"v":0,"d":"R0.00"},{"v":0,"d":"R0.00"},{"v":0,"d":"R0.00"},{"v":0,"d":"R0.00"},{"v":0,"d":"R0.00"},{"v":0,"d":"R0.00"},{"v":0,"d":"R0.00"},{"v":0,"d":"R0.00"},null,{"v":0,"d":"R0.00"},{"v":0,"d":"R0.00"},{"v":0,"d":"R0.00"},{"v":0,"d":"R0.00"},{"v":0,"d":"R0.00"},{"v":0,"d":"R0.00"}]
[null,"400kV Invubu - Umfolozi 1",2,{"$nulls":4},0,0,0,{"v":0,"d":"R0.00"},{"v":0,"d":"R0.00"},{"v":0,"d":"R0.00"},{"v":0,"d":"R0.00"},{"v":0,"d":"R0.00"},{"v":0,"d":"R0.00"},{"v":0,"d":"R0.00"},{"v":0,"d":"R0.00"},null,{"v":0,"d":"R0.00"},{"v":0,"d":"R0.00"},{"v":0,"d":"R0.00"},{"v":0,"d":"R0.00"},{"v":0,"d":"R0.00"},{"v":0,"d":"R0.00"}]
[null,"275kV Bloukrans - Venus 3",2,{"$nulls":4},0,0,0,{"v":0,"d":"R0.00"},{"v":0,"d":"R0.00"},{"v":0,"d":"R0.00"},{"v":0,"d":"R0.00"},{"v":0,"d":"R0.00"},{"v":0,"d":"R0.00"},{"v":0,"d":"R0.00"},{"v":0,"d":"R0.00"},{"v":0,"d":"R0.00"},{"$f":"T89","v":{"v":0,"d":"R0.00"}},{"$f":"U89","v":{"v":0,"d":"R0.00"}},{"$f":"V89","v":{"v":0,"d":"R0.00"}},null,{"$f":"K90+O90+S90+W90","v":{"v":0,"d":"R0.00"}},{"v":0,"d":"R0.00"}]
[{"$nulls":23},{"v":0,"d":"R0.00"},{"v":0,"d":"R0.00"}]
[{"$nulls":23},{"v":0,"d":"R0.00"},{"v":0,"d":"R0.00"}]
[{"$nulls":23},{"v":0,"d":"R0.00"},{"v":0,"d":"R0.00"}]
[{"$nulls":23},{"v":0,"d":"R0.00"},{"v":0,"d":"R0.00"}]
[{"$nulls":23},{"v":0,"d":"R0.00"},{"v":0,"d":"R0.00"}]
[{"$nulls":23},{"v":0,"d":"R0.00"},{"v":0,"d":"R0.00"}]
[{"$nulls":23},{"v":0,"d":"R0.00"},{"v":0,"d":"R0.00"}]
[{"$nulls":23},{"v":0,"d":"R0.00"},{"v":0,"d":"R0.00"}]
[{"$nulls":23},{"v":0,"d":"R0.00"},{"v":0,"d":"R0.00"}]
[{"$nulls":23},{"v":0,"d":"R0.00"},{"v":0,"d":"R0.00"}]
[{"$nulls":23},{"v":0,"d":"R0.00"},{"v":0,"d":"R0.00"}]
[{"$nulls":23},{"v":0,"d":"R0.00"},{"v":0,"d":"R0.00"}]
[{"$nulls":23},{"v":0,"d":"R0.00"},{"v":0,"d":"R0.00"}]
[{"$nulls":23},{"v":0,"d":"R0.00"},{"v":0,"d":"R0.00"}]
[{"$nulls":23},{"v":0,"d":"R0.00"},{"v":0,"d":"R0.00"}]
[{"$nulls":23},{"v":0,"d":"R0.00"},{"v":0,"d":"R0.00"}]
[{"$nulls":23},{"v":0,"d":"R0.00"},{"v":0,"d":"R0.00"}]
[{"$nulls":23},{"v":0,"d":"R0.00"},{"v":0,"d":"R0.00"}]
[{"$nulls":23},{"v":0,"d":"R0.00"},{"$f":"X109*C109","v":{"v":0,"d":"R0.00"}}]
[null,"Other PLC projects that will be in ERA within a few years (estimate)",10,{"$nulls":4},{"$f":"H13","v":0},{"$f":"I13","v":0},{"$f":"J13","v":0},{"$f":"H110+I110+J110","v":{"v":0,"d":"R0.00"}},{"$f":"L13","v":{"v":0,"d":"R0.00"}},{"$f":"M13","v":{"v":0,"d":"R0.00"}},{"$f":"N13","v":{"v":0,"d":"R0.00"}},{"$f":"L110+M110+N110","v":{"v":0,"d":"R0.00"}},{"$f":"P13","v":{"v":0,"d":"R0.00"}},{"$f":"Q13","v":{"v":0,"d":"R0.00"}},{"$f":"R13","v":{"v":0,"d":"R0.00"}},{"$f":"P110+Q110+R110","v":{"v":0,"d":"R0.00"}},{"$nulls":3},{"$f":"T110+U110+V110","v":{"v":0,"d":"R0.00"}},{"$f":"K110+O110+S110+W110","v":{"v":0,"d":"R0.00"}},{"v":0,"d":"R0.00"}]
[]
[null,"Carrier Cabinet and wiring for 2 PLCs. SAP 0224028",2,{"$f":"PS5_Supply!O38","v":0},{"$f":"PS5_Supply!O29","v":0},{"$f":"PS5_Supply!O42+PS5_Supply!O45","v":0},{"$f":"D112+E112+F112","v":{"v":0,"d":"R0.00"}},{"$nulls":17},{"$f":"G112*C112","v":{"v":0,"d":"R0.00"}}]
[null,"Stand alone cabinet (KX-1) SAP 0224033",2,{"$f":"PS5_Supply!P38","v":0},{"$f":"PS5_Supply!P29","v":0},{"$f":"PS5_Supply!P42+PS5_Supply!P45","v":0},{"v":0,"d":"R0.00"},{"$nulls":17},{"v":0,"d":"R0.00"}]
[null,"Wiring Loom convert from stand alone cabinet to cabinet with 1 PLC (KX-W) SAP 0224030",2,{"$f":"PS5_Supply!Q38","v":0},{"$f":"PS5_Supply!Q29","v":0},{"$f":"PS5_Supply!Q42+PS5_Supply!Q45","v":0},{"v":0,"d":"R0.00"},{"$nulls":17},{"v":0,"d":"R0.00"}]
[null,"PLC Carrier Combiner for three phase coupling SAP0207814",2,{"$f":"PS5_Supply!R38","v":0},{"$f":"PS5_Supply!R29","v":0},{"$f":"PS5_Supply!R42+PS5_Supply!R45","v":0},{"v":0,"d":"R0.00"},{"$nulls":17},{"v":0,"d":"R0.00"}]
[null,"PLC 40/50 W, 4 kHz Teleprotection (3 Channel), Data (19.2 kbps)  (Complete Unit with all components) SAP 0224012",2,{"$f":"PS5_Supply!S38","v":0},{"$f":"PS5_Supply!S29","v":0},{"$f":"PS5_Supply!S42+PS5_Supply!S45","v":0},{"v":0,"d":"R0.00"},{"$nulls":17},{"v":0,"d":"R0.00"}]
[null,"PLC 40/50 W, 4 kHz Teleprotection (3 Channel), Data, Speech (Complete Unit with all components) SAP 0224013",2,{"$f":"PS5_Supply!T38","v":0},{"$f":"PS5_Supply!T29","v":0},{"$f":"PS5_Supply!T42+PS5_Supply!T45","v":0},{"v":0,"d":"R0.00"},{"$nulls":17},{"v":0,"d":"R0.00"}]
[null,"PLC 40/50 W, 4 kHz Teleprotection (3 Channel), Wideband Speech  (Complete Unit with all components) SAP 0224014",2,{"$f":"PS5_Supply!U38","v":0},{"$f":"PS5_Supply!U29","v":0},{"$f":"PS5_Supply!U42+PS5_Supply!U45","v":0},{"$f":"D118+E118+F118","v":{"v":0,"d":"R0.00"}},{"$nulls":17},{"v":0,"d":"R0.00"}]
[null,"PLC 40/50 W, 8 kHz Teleprotection (3 Channel), Wideband Speech/Data  (Complete Unit with all components) SAP 0224016",2,{"$f":"PS5_Supply!V38","v":0},{"$f":"PS5_Supply!V29","v":0},{"$f":"PS5_Supply!V42+PS5_Supply!V45","v":0},{"v":0,"d":"R0.00"},{"$nulls":17},{"v":0,"d":"R0.00"}]
[null,"PLC 80/100 W, 4 kHz Teleprotection (3 Channel), Data (19.2 kbps)  (Complete Unit with all components) SAP 0224018",2,{"$f":"PS5_Supply!V38","v":0},{"$f":"PS5_Supply!V29","v":0},{"$f":"PS5_Supply!V42+PS5_Supply!V45","v":0},{"v":0,"d":"R0.00"},{"$nulls":17},{"v":0,"d":"R0.00"}]
[null,"PLC 80/100 W, 4 kHz Teleprotection (3 Channel), Data, Speech (Complete Unit with all components) SAP 0554801",2,{"$f":"PS5_Supply!X38","v":0},{"$f":"PS5_Supply!X29","v":0},{"$f":"PS5_Supply!X42+PS5_Supply!X45","v":0},{"v":0,"d":"R0.00"},{"$nulls":17},{"v":0,"d":"R0.00"}]
[null,"PLC 80/100 W, 4 kHz Teleprotection (3 Channel), Wideband Speech  (Complete Unit with all components) SAP 0224021",2,{"$f":"PS5_Supply!Y38","v":0},{"$f":"PS5_Supply!Y29","v":0},{"$f":"PS5_Supply!Y42+PS5_Supply!Y45","v":0},{"v":0,"d":"R0.00"},{"$nulls":17},{"v":0,"d":"R0.00"}]
[null,"PLC 80/100 W, 8 kHz Teleprotection (3 Channel), Wideband Speech/Data  (Complete Unit with all components) SAP 0224022",2,{"$f":"PS5_Supply!Z38","v":0},{"$f":"PS5_Supply!Z29","v":0},{"$f":"PS5_Supply!Z42+PS5_Supply!Z45","v":0},{"v":0,"d":"R0.00"},{"$nulls":17},{"v":0,"d":"R0.00"}]
[null,"Upgrade from 2kHz to 4kHz Teleprotection, Speech and Data SAP 0224023",2,{"$f":"PS5_Supply!AA38","v":0},{"$f":"PS5_Supply!AA29","v":0},{"$f":"PS5_Supply!AA42+PS5_Supply!AA45","v":0},{"v":0,"d":"R0.00"},{"$nulls":17},{"v":0,"d":"R0.00"}]
[null,"Upgrade from 2kHz to 4kHz Teleprotection and Data SAP 0224024",2,{"$f":"PS5_Supply!AB38","v":0},{"$f":"PS5_Supply!AB29","v":0},{"$f":"PS5_Supply!AB42+PS5_Supply!AB45","v":0},{"v":0,"d":"R0.00"},{"$nulls":17},{"v":0,"d":"R0.00"}]
[null,"Upgrade from 2kHz to 8kHz Teleprotection, Speech and Data SAP 0224025",2,{"$f":"PS5_Supply!AC38","v":0},{"$f":"PS5_Supply!AC29","v":0},{"$f":"PS5_Supply!AC42+PS5_Supply!AC45","v":0},{"v":0,"d":"R0.00"},{"$nulls":17},{"v":0,"d":"R0.00"}]
[null,"Upgrade from 4kHz Teleprotection Only to 4kHz Teleprotection and Speech SAP 0224026",2,{"$f":"PS5_Supply!AD38","v":0},{"$f":"PS5_Supply!AD29","v":0},{"$f":"PS5_Supply!AD42+PS5_Supply!AD45","v":0},{"v":0,"d":"R0.00"},{"$nulls":17},{"v":0,"d":"R0.00"}]
[null,"Audio frequency interface module or equivalent SAP 0554743",2,{"$f":"PS5_Supply!AE38","v":0},{"$f":"PS5_Supply!AE29","v":0},{"$f":"PS5_Supply!AE42+PS5_Supply!AE45","v":0},{"v":0,"d":"R0.00"},{"$nulls":17},{"v":0,"d":"R0.00"}]
[null,"Teleprotection interface module SAP 0554744",2,{"$f":"PS5_Supply!AF38","v":0},{"$f":"PS5_Supply!AF29","v":0},{"$f":"PS5_Supply!AF42+PS5_Supply!AF45","v":0},{"v":0,"d":"R0.00"},{"$nulls":17},{"v":0,"d":"R0.00"}]
[null,"CPU Module/ Digital Signal Processing (DSP) module SAP 0554745",2,{"$f":"PS5_Supply!AG38","v":0},{"$f":"PS5_Supply!AG29","v":0},{"$f":"PS5_Supply!AG42+PS5_Supply!AG45","v":0},{"v":0,"d":"R0.00"},{"$nulls":17},{"v":0,"d":"R0.00"}]
[null,"Radio Frequency Hybrid and Transmit filter SAP 0554746",2,{"$f":"PS5_Supply!AH38","v":0},{"$f":"PS5_Supply!AH29","v":0},{"$f":"PS5_Supply!AH42+PS5_Supply!AH45","v":0},{"v":0,"d":"R0.00"},{"$nulls":17},{"v":0,"d":"R0.00"}]
[null,"Carrier combiner and Transmit filter (80/100W) SAP 0554747",2,{"$f":"PS5_Supply!AI38","v":0},{"$f":"PS5_Supply!AI29","v":0},{"$f":"PS5_Supply!AI42+PS5_Supply!AI45","v":0},{"v":0,"d":"R0.00"},{"$nulls":17},{"v":0,"d":"R0.00"}]
[null,"Receive filter SAP 0554763",2,{"$f":"PS5_Supply!AJ38","v":0},{"$f":"PS5_Supply!AJ29","v":0},{"$f":"PS5_Supply!AJ42+PS5_Supply!AJ45","v":0},{"v":0,"d":"R0.00"},{"$nulls":17},{"v":0,"d":"R0.00"}]
[null,"Retuning of Filters SAP 0554767",2,{"$f":"PS5_Supply!AK38","v":0},{"$f":"PS5_Supply!AK29","v":0},{"$f":"PS5_Supply!AK42+PS5_Supply!AK45","v":0},{"v":0,"d":"R0.00"},{"$nulls":17},{"v":0,"d":"R0.00"}]
[null,"40/50W Power Amplifier SAP 0554764",2,{"$f":"PS5_Supply!AL38","v":0},{"$f":"PS5_Supply!AL29","v":0},{"$f":"PS5_Supply!AL42+PS5_Supply!AL45","v":0},{"v":0,"d":"R0.00"},{"$nulls":17},{"v":0,"d":"R0.00"}]
[null,"Subrack 1 SAP 0224041",2,{"$f":"PS5_Supply!AM38","v":0},{"$f":"PS5_Supply!AM29","v":0},{"$f":"PS5_Supply!AM42+PS5_Supply!AM45","v":0},{"v":0,"d":"R0.00"},{"$nulls":17},{"v":0,"d":"R0.00"}]
[null,"Subrack 2 SAP 0002415",2,{"$f":"PS5_Supply!AN38","v":0},{"$f":"PS5_Supply!AN29","v":0},{"$f":"PS5_Supply!AN42+PS5_Supply!AN45","v":0},{"v":0,"d":"R0.00"},{"$nulls":17},{"v":0,"d":"R0.00"}]
[null,"Subrack 3 SAP 0009459",2,{"$f":"PS5_Supply!AO38","v":0},{"$f":"PS5_Supply!AO29","v":0},{"$f":"PS5_Supply!AO42+PS5_Supply!AO45","v":0},{"v":0,"d":"R0.00"},{"$nulls":17},{"v":0,"d":"R0.00"}]
[null,"Modem 2xV.24/1xV.11 SAP 0224051",2,{"$f":"PS5_Supply!AP38","v":0},{"$f":"PS5_Supply!AP29","v":0},{"$f":"PS5_Supply!AP42+PS5_Supply!AP45","v":0},{"v":0,"d":"R0.00"},{"$nulls":17},{"v":0,"d":"R0.00"}]
[null,"Modem 6xV.24/2xV.11/LAN/G703.1 SAP 0224054",2,{"$f":"PS5_Supply!AQ38","v":0},{"$f":"PS5_Supply!AQ29","v":0},{"$f":"PS5_Supply!AQ42+PS5_Supply!AQ45","v":0},{"v":0,"d":"R0.00"},{"$nulls":17},{"v":0,"d":"R0.00"}]
[null,"Power Supply unit SAP 0554748",2,{"$f":"PS5_Supply!AR38","v":0},{"$f":"PS5_Supply!AR29","v":0},{"$f":"PS5_Supply!AR42+PS5_Supply!AR45","v":0},{"v":0,"d":"R0.00"},{"$nulls":17},{"v":0,"d":"R0.00"}]
[null,"Protection Interface Adaptor SAP 0224050",2,{"$f":"PS5_Supply!AS38","v":0},{"$f":"PS5_Supply!AS29","v":0},{"$f":"PS5_Supply!AS42+PS5_Supply!AS45","v":0},{"v":0,"d":"R0.00"},{"$nulls":17},{"v":0,"d":"R0.00"}]
[null,"Dummy Load SAP 0002413",2,{"$f":"PS5_Supply!AT38","v":0},{"$f":"PS5_Supply!AT29","v":0},{"$f":"PS5_Supply!AT42+PS5_Supply!AT45","v":0},{"v":0,"d":"R0.00"},{"$nulls":17},{"v":0,"d":"R0.00"}]
[]
[null,null,{"$f":"SUM(C13:C110)","v":166},{"$nulls":21},{"$f":"SUM(Y13:Y144)","v":{"v":0,"d":"R0.00"}}]

{"sheet":"Summary","index":3,"n_rows":13,"n_cols":5,"rows_kept":13,"merged":[[1,0,1,1],[1,2,1,4],[2,0,2,1],[2,2,2,4],[3,0,3,1],[3,2,3,4]]}
[]
["Enquiry No.",null,{"$f":"Cover!B15","v":0}]
["Package Name:",null,{"$f":"Cover!B17","v":"Manufacture, supply, testing, delivery and offloading of estimated quantities of Power Line Carrier Equipment on an “as and when required” basis"}]
["Tenderer's Name:",null,{"$f":"Cover!B21","v":0}]
[]
[null,"PLC Project summary"]
[]
[]
[null,"Summary"]
[null,"PLC 50W 2kHz TPE with Cabinet, Wiring and CCU",{"$f":"'PLC Units BoQ '!C13+'PLC Units BoQ '!C14+'PLC Units BoQ '!C15+'PLC Units BoQ '!C19+'PLC Units BoQ '!C22+'PLC Units BoQ '!C23+'PLC Units BoQ '!C25+'PLC Units BoQ '!C26+'PLC Units BoQ '!C27+'PLC Units BoQ '!C28+'PLC Units BoQ '!C29+'PLC Units BoQ '!C30+'PLC Units BoQ '!C31+'PLC Units BoQ '!C33+'PLC Units BoQ '!C34+'PLC Units BoQ '!C35+'PLC Units BoQ '!C36+'PLC Units BoQ '!C37+'PLC Units BoQ '!C44+'PLC Units BoQ '!C45+'PLC Units BoQ '!C50+'PLC Units BoQ '!C58+'PLC Units BoQ '!C59+'PLC Units BoQ '!C60+'PLC Units BoQ '!C61+'PLC Units BoQ '!C66+'PLC Units BoQ '!C67+'PLC Units BoQ '!C68+'PLC Units BoQ '!C70+'PLC Units BoQ '!C71+'PLC Units BoQ '!C72+'PLC Units BoQ '!C73+'PLC Units BoQ '!C74+'PLC Units BoQ '!C75+'PLC Units BoQ '!C76+'PLC Units BoQ '!C77+'PLC Units BoQ '!C78+'PLC Units BoQ '!C79+'PLC Units BoQ '!C80+'PLC Units BoQ '!C81+'PLC Units BoQ '!C82+'PLC Units BoQ '!C90+'PLC Units BoQ '!C110","v":94},{"$f":"'PLC Units BoQ '!X13","v":{"v":0,"d":"R0.00"}},{"$f":"C10*D10","v":{"v":0,"d":"R0.00"}}]
[null,"PLC 100W 2kHz TPE with Cabinet, Wiring and CCU",{"$f":"'PLC Units BoQ '!C16+'PLC Units BoQ '!C17+'PLC Units BoQ '!C18+'PLC Units BoQ '!C20+'PLC Units BoQ '!C21+'PLC Units BoQ '!C24+'PLC Units BoQ '!C32+'PLC Units BoQ '!C38+'PLC Units BoQ '!C39+'PLC Units BoQ '!C40+'PLC Units BoQ '!C41+'PLC Units BoQ '!C42+'PLC Units BoQ '!C43+'PLC Units BoQ '!C46+'PLC Units BoQ '!C47+'PLC Units BoQ '!C48+'PLC Units BoQ '!C49+'PLC Units BoQ '!C51+'PLC Units BoQ '!C52+'PLC Units BoQ '!C53+'PLC Units BoQ '!C54+'PLC Units BoQ '!C55+'PLC Units BoQ '!C56+'PLC Units BoQ '!C57+'PLC Units BoQ '!C62+'PLC Units BoQ '!C63+'PLC Units BoQ '!C64+'PLC Units BoQ '!C65+'PLC Units BoQ '!C69+'PLC Units BoQ '!C83+'PLC Units BoQ '!C84+'PLC Units BoQ '!C85+'PLC Units BoQ '!C86+'PLC Units BoQ '!C87+'PLC Units BoQ '!C88+'PLC Units BoQ '!C89","v":72},{"$f":"'PLC Units BoQ '!X16","v":{"v":0,"d":"R0.00"}},{"$f":"C11*D11","v":{"v":0,"d":"R0.00"}}]
[null,"Miscellaneous Items","item",{"$f":"SUM('PLC Units BoQ '!Y112:Y144)","v":{"v":0,"d":"R0.00"}},{"$f":"D12","v":{"v":0,"d":"R0.00"}}]
[{"$nulls":4},{"$f":"SUM(E10:E12)","v":{"v":0,"d":"R0.00"}}]

{"sheet":"Transport & offloading Matrix","index":4,"n_rows":52,"n_cols":6,"rows_kept":52,"merged":[[0,0,0,1],[0,2,0,4],[1,0,1,1],[1,2,1,4],[2,0,2,1],[2,2,2,4]]}
["Enquiry No.",null,{"$f":"Cover!B15","v":0}]
["Package Name:",null,{"$f":"Cover!B17","v":"Manufacture, supply, testing, delivery and offloading of estimated quantities of Power Line Carrier Equipment on an “as and when required” basis"}]
["Tenderer's Name:",null,{"$f":"Cover!B21","v":0}]
[]
[null,"Transportation price list"]
[]
[]
[1,"TRANSPORT","Unit","Rate ","CPA Formula"]
[1.1,"LDV (Light duty vehicles)","km"]
[1.2,"Personnel Transport for Staff","km"]
[1.3,"10 m³ Tipper Truck","km"]
[1.4,"6 m³ Tipper Truck","km"]
[1.5,"Transport Truck 2-4 ton","km"]
[1.6,"Transport Truck 5-8 ton","km"]
["1.6b","Transport Truck 5-8 ton with forklift","km"]
[1.7,"Transport Truck 9-14 ton","km"]
[1.8,"Transport Truck 9-14 ton with crane","km"]
[1.9,"Lowbed","km"]
[{"v":1.1,"d":"1.10"}]
[1.11]
[null,"Specify other transport modes not listed above *"]
[]
[]
[]
[]
[]
[null,"Offloading price list "]
[]
[]
[1,"Labour grade","Unit","Unit rate (standard day)","Unit rate (overtime)","CPA Formula"]
[1.1,"Engineer ","Per Hour "]
[1.2,"Electrician/Artisan","Per Hour "]
[1.3,"Supervisor ","Per Hour "]
[1.4,"Skilled labour","Per Hour "]
[1.5,"Semi-skilled labour","Per Hour "]
[1.6,"Unskilled labour","Per Hour "]
[1.7,"Rigger ","Per Hour "]
[1.8,"Driver ","Per Hour "]
[1.9,"Specify other grades not listed above *"]
[{"v":1.1,"d":"1.10"}]
[1.11]
[]
[]
[2,"Accommodation costs (only for overnight trips)","Unit","Unit rate (standard day)","Unit rate (overtime)","CPA Formula"]
[2.1,"Accommodation","per night"]
[2.2,"Travel allowance/subsitence ","per night"]
[2.3,"Specify other costs not listed above *"]
[2.4]
[2.5]
[2.6]
[]
[null,"Bidders to note provisions of National Treasury instruction 03 of 2017"]

{"sheet":"CPA Formula","index":5,"n_rows":132,"n_cols":14,"rows_kept":132,"merged":[[0,0,0,1],[1,0,1,1],[2,0,2,1],[4,0,4,4],[10,1,10,6],[11,1,11,6],[12,1,12,6],[13,1,13,6],[15,1,15,6],[16,1,16,6],[17,1,17,6],[18,1,18,6],[19,1,19,6],[23,1,23,6],[34,1,34,6],[46,1,46,6],[57,1,57,6],[68,1,68,6],[79,1,79,6],[90,1,90,6],[101,1,101,6],[112,1,112,6],[123,1,123,6]]}
["Enquiry No.",null,{"$f":"Cover!B15","v":0}]
["Package Name:",null,{"$f":"Cover!B17","v":"Manufacture, supply, testing, delivery and offloading of estimated quantities of Power Line Carrier Equipment on an “as and when required” basis"}]
["Tenderer's Name:",null,{"$f":"Cover!B21","v":0}]
[]
["CONTRACT PRICE ADJUSTMENT (CPA) FOR INFLATION"]
[]
[]
["SPECIFIC REQUIREMENTS"]
[]
["GENERAL NOTES :"]
[1,"References to \"indices\" below mean \"cost indices or reference prices\"."]
[2,"Where 5 year historical information must be provided as instructed below, internet address references which are accessible to the general public may be submitted by the Tenderer instead, with the specific electronic route and web page reflecting the applicable data."]
[3,"The CPA Formula in PS5  has to be populated by the tenderer, unless the tenderer’s prices are fixed and firm for the duration of the contract. Each CPA formula must add up to a total of 100%.  No inhouse CPA indices may be used. Tenderers are to provide all requested information.CPA Formulae should represent cost breakdown of the goods/commodities/components/items being sourced.\n"]
[{"$f":"A13+1","v":4},"The CPA escalation will be calculated as follows: The base date for CPA calculation purposes will be one month prior to enquiry closing or as agreed to between the parties (if there is a need to move the base date during contract negotiations). The latest / ruling index used for CPA calculation purposes will be aligned to the delivery dates of the equipment on the assessment for payment on a particular payment certificate month."]
["CPA FORMULA NOTES :"]
[1,"Proportions/weightings in CPA Formulae: The fixed portion of each formula, not subject to CPA, must be at least 15%.  The other constituent indices and their proportions in each formula must be realistic and relative to the applicable work. The fixed portion and other proportions must add up to 100%.   "]
[2,"Formulae must be linked to independent cost indices or other benchmarks (\"reference prices\") and must be clearly and completely defined. The source must be a recognised and independent statistical publishing organisation.  The Tenderers' in-house indices may not be used."]
[3,"Local Price CPA: Where local indices other than those published by SEIFSA or Statistics SA are specified, the Tenderer must submit 5 years' of month by month historical data for such indices. The Tenderer must ensure that indices are published and recommended by the source thereof as applicable to the work involved and that they are still in force/use and applicable at the date of submission of the tender. "]
[4,"CPA Base Date: The CPA base date for calculating price movements will be the Base Date, Month before Tender closes."]
[5,"Base Date Index :   The base index or reference price must be inserted in the appropriate column."]
[" "," "]
[]
[]
["Formula A","Tenderer's description of Formula A i.e. Carrier Cabinet & Wiring 1 PLC (SAP 0554765)"]
["Index Ref.","Proportions / weightings for each index (refer note 1)","Description / scope of index (e.g. Labour)","Title/Definition : Linked to the index, e.g., Table C3, All hourly paid employees.  Must be completely defined","Source/publisher of index (e.g. SEIFSA, StatsSA)"," Base Date ","Base Date Index (refer note 5)","Historical data provided (Yes or No- provide http link)","yy/mm/dd","yy/mm/dd","yy/mm/dd","yy/mm/dd","yy/mm/dd","yy/mm/dd"]
["A1"]
["A2"]
["A3"]
["A4"]
["A5"]
["A6",{"v":0.15,"d":"15%"},"Fixed 15% minimum not subject to CPA (0.150)"]
[null,{"$f":"SUM(B26:B31)","v":{"v":0.15,"d":"15%"}},"Total","This Total is to add up to 100% for each CPA formula submitted by tenderer"]
[]
[]
["Formula B"]
["Index Ref.","Proportions / weightings for each index (refer note 1)","Description / scope of index (e.g. Labour)","Title/Definition : Linked to the index, e.g., Table C3, All hourly paid employees.  Must be completely defined","Source/publisher of index (e.g. SEIFSA, StatsSA, LME)"," Base Date ","Base Date Index (refer note 5)","Historical data provided (Yes or No- provide Internet address)","yy/mm/dd","yy/mm/dd","yy/mm/dd","yy/mm/dd","yy/mm/dd","yy/mm/dd"]
["B1"]
[]
["B2"]
["B3"]
["B4"]
["B5"]
["B6",{"v":0.15,"d":"15%"},"Fixed 15% minimum not subject to CPA (0.150)"]
[null,{"$f":"SUM(B37:B43)","v":{"v":0.15,"d":"15%"}},"Total","This Total is to add up to 100% for each CPA formula submitted by tenderer"]
[]
[]
["Formula C"]
["Index Ref.","Proportions / weightings for each index (refer note 1)","Description / scope of index (e.g. Labour)","Title/Definition : Linked to the index, e.g., Table C3, All hourly paid employees.  Must be completely defined","Source/publisher of index (e.g. SEIFSA, StatsSA, LME)"," Base Date ","Base Date Index (refer note 5)","Historical data provided (Yes or No- provide Internet address)","yy/mm/dd","yy/mm/dd","yy/mm/dd","yy/mm/dd","yy/mm/dd","yy/mm/dd"]
["C1"]
["C2"," "]
["C3"]
["C4"," "]
["C5"," "]
["C6",{"v":0.15,"d":"15%"},"Fixed 15% minimum not subject to CPA (0.150)"]
[null,{"$f":"SUM(B49:B54)","v":{"v":0.15,"d":"15%"}},"Total","This Total is to add up to 100% for each CPA formula submitted by tenderer"]
[]
[]
["Formula D"]
["Index Ref.","Proportions / weightings for each index (refer note 1)","Description / scope of index (e.g. Labour)","Title/Definition : Linked to the index, e.g., Table C3, All hourly paid employees.  Must be completely defined","Source/publisher of index (e.g. SEIFSA, StatsSA, LME)"," Base Date ","Base Date Index (refer note 5)","Historical data provided (Yes or No- provide Internet address)","yy/mm/dd","yy/mm/dd","yy/mm/dd","yy/mm/dd","yy/mm/dd","yy/mm/dd"]
["D1"]
["D2"]
["D3"]
["D4"," "]
["D5"," "]
["D6",{"v":0.15,"d":"15%"},"Fixed 15% minimum not subject to CPA (0.150)"]
[null,{"$f":"SUM(B60:B65)","v":{"v":0.15,"d":"15%"}},"Total","This Total is to add up to 100% for each CPA formula submitted by tenderer"]
[]
[]
["Formula E"]
["Index Ref.","Proportions / weightings for each index (refer note 1)","Description / scope of index (e.g. Labour)","Title/Definition : Linked to the index, e.g., Table C3, All hourly paid employees.  Must be completely defined","Source/publisher of index (e.g. SEIFSA, StatsSA, LME)"," Base Date ","Base Date Index (refer note 5)","Historical data provided (Yes or No- provide Internet address)","yy/mm/dd","yy/mm/dd","yy/mm/dd","yy/mm/dd","yy/mm/dd","yy/mm/dd"]
["E1"]
["E2"]
["E3"]
["E4"," "]
["E5"," "]
["E6",{"v":0.15,"d":"15%"},"Fixed 15% minimum not subject to CPA (0.150)"]
[null,{"$f":"SUM(B71:B76)","v":{"v":0.15,"d":"15%"}},"Total","This Total is to add up to 100% for each CPA formula submitted by tenderer"]
[]
[]
["Formula F"]
["Index Ref.","Proportions / weightings for each index (refer note 1)","Description / scope of index (e.g. Labour)","Title/Definition : Linked to the index, e.g., Table C3, All hourly paid employees.  Must be completely defined","Source/publisher of index (e.g. SEIFSA, StatsSA, LME)"," Base Date ","Base Date Index (refer note 5)","Historical data provided (Yes or No- provide Internet address)","yy/mm/dd","yy/mm/dd","yy/mm/dd","yy/mm/dd","yy/mm/dd","yy/mm/dd"]
["F1"]
["F2"]
["F3"]
["F4"]
["F5"]
["F6",{"v":0.15,"d":"15%"},"Fixed 15% minimum not subject to CPA (0.150)"]
[null,{"$f":"SUM(B82:B87)","v":{"v":0.15,"d":"15%"}},"Total","This Total is to add up to 100% for each CPA formula submitted by tenderer"]
[]
[]
["Formula G"]
["Index Ref.","Proportions / weightings for each index (refer note 1)","Description / scope of index (e.g. Labour)","Title/Definition : Linked to the index, e.g., Table C3, All hourly paid employees.  Must be completely defined","Source/publisher of index (e.g. SEIFSA, StatsSA, LME)"," Base Date ","Base Date Index (refer note 5)","Historical data provided (Yes or No- provide Internet address)","yy/mm/dd","yy/mm/dd","yy/mm/dd","yy/mm/dd","yy/mm/dd","yy/mm/dd"]
["G1"]
["G2"," "]
["G3"," "]
["G4"]
["G5"," "]
["G6",{"v":0.15,"d":"15%"},"Fixed 15% minimum not subject to CPA (0.150)"]
[null,{"$f":"SUM(B93:B98)","v":{"v":0.15,"d":"15%"}},"Total","This Total is to add up to 100% for each CPA formula submitted by tenderer"]
[]
[]
["Formula H"]
["Index Ref.","Proportions / weightings for each index (refer note 1)","Description / scope of index (e.g. Labour)","Title/Definition : Linked to the index, e.g., Table C3, All hourly paid employees.  Must be completely defined","Source/publisher of index (e.g. SEIFSA, StatsSA, LME)"," Base Date ","Base Date Index (refer note 5)","Historical data provided (Yes or No- provide Internet address)","yy/mm/dd","yy/mm/dd","yy/mm/dd","yy/mm/dd","yy/mm/dd","yy/mm/dd"]
["H1"," "]
["H2"," "]
["H3"," "]
["H4"," "]
["H5"," "]
["H6",{"v":0.15,"d":"15%"},"Fixed 15% minimum not subject to CPA (0.150)"]
[null,{"$f":"SUM(B104:B109)","v":{"v":0.15,"d":"15%"}},"Total","This Total is to add up to 100% for each CPA formula submitted by tenderer"]
[]
[]
["Formula I"]
["Index Ref.","Proportions / weightings for each index (refer note 1)","Description / scope of index (e.g. Labour)","Title/Definition : Linked to the index, e.g., Table C3, All hourly paid employees.  Must be completely defined","Source/publisher of index (e.g. SEIFSA, StatsSA, LME)"," Base Date ","Base Date Index (refer note 5)","Historical data provided (Yes or No- provide Internet address)","yy/mm/dd","yy/mm/dd","yy/mm/dd","yy/mm/dd","yy/mm/dd","yy/mm/dd"]
["I1"," "]
["I2"," "]
["I3"," "]
["I4"]
["I5"," "]
["I6",{"v":0.15,"d":"15%"},"Fixed 15% minimum not subject to CPA (0.150)"]
[null,{"$f":"SUM(B115:B120)","v":{"v":0.15,"d":"15%"}},"Total","This Total is to add up to 100% for each CPA formula submitted by tenderer"]
[]
[]
["Formula J"]
["Index Ref.","Proportions / weightings for each index (refer note 1)","Description / scope of index (e.g. Labour)","Title/Definition : Linked to the index, e.g., Table C3, All hourly paid employees.  Must be completely defined","Source/publisher of index (e.g. SEIFSA, StatsSA, LME)"," Base Date ","Base Date Index (refer note 5)","Historical data provided (Yes or No- provide Internet address)","yy/mm/dd","yy/mm/dd","yy/mm/dd","yy/mm/dd","yy/mm/dd","yy/mm/dd"]
["J1"," "]
["J2"]
["J3"," "]
["J4"," "]
["J5"," "]
["J6",{"v":0.15,"d":"15%"},"Fixed 15% minimum not subject to CPA (0.150)"]
[null,{"$f":"SUM(B126:B131)","v":{"v":0.15,"d":"15%"}},"Total","This Total is to add up to 100% for each CPA formula submitted by tenderer"]

{"sheet":"Exchange Rates","index":6,"n_rows":36,"n_cols":8,"rows_kept":36,"merged":[[0,0,0,1],[0,2,0,4],[1,0,1,1],[1,2,1,4],[2,0,2,1],[2,2,2,4],[7,1,7,6],[8,0,10,0],[8,1,8,6],[8,14,8,19],[9,1,9,6],[10,1,10,6],[11,1,11,6],[12,1,12,6],[13,0,15,0],[13,1,13,6],[14,1,14,6],[15,1,15,6],[20,7,20,12]]}
["Enquiry No.",null,{"$f":"Cover!B15","v":0}]
["Package Name:",null,{"$f":"Cover!B17","v":"Manufacture, supply, testing, delivery and offloading of estimated quantities of Power Line Carrier Equipment on an “as and when required” basis"}]
["Tenderer's Name:",null,{"$f":"Cover!B21","v":0}]
[]
["EXCHANGE RATES FOR MULTIPLE CURRENCIES"]
[]
["NOTES:"]
[1,"The table below needs to be completed if the Employer will be exposed to any currency fluctuation as stipulated in Secondary Clause X3.  For conversion of the foreign portions to Rand, please use the South African Reserve Bank's (SARB) exchange rate at 12:00 on the day of advertisement of the bid.  This is in terms of the Preferential Procurement Policy Framework Act (PPPFA) with which the Employer has to comply.\nNB: Tenderers must submit proof of the SARB rate(s) of exchange used  "]
[2,"The following URL (electronic route) is to be followed to access the relevant SARB rates on their web pages:\n"]
[null,"www.resbank.co.za"]
[null,"-  Select Research\n-  Then select Rates\n-  Click on \"Select historical exchange rates and other interest rates\"\n-  Clicking on the exchange rate in the following page opens the daily rates per currency and SA Rand"]
[3,"The Employer deals only in the currencies listed below, unless other currencies are specifically approved for this tender.  Kindly notify the Employer of any currency that the tenderer intends to use, but is not stipulated in the table, to consider sanctioning such currency.  Sufficient time must be allowed for the assessment and to respond to such request.  The onus is on the tenderer to submit a bid with approved currencies"]
[4,"The format in which the exchange rate must be inserted in the table is:  1 (One) Foreign Currency = R Amount  (i.e. the Rand amount for one of each foreign currency applicable).  Exchange rates must be rounded to 4 decimals\n\nNB :  Only the USD/ZAR, GBP/ZAR and EUR/ZAR are published in this way on the SARB web pages above.  The Rand rate with the other currencies must be inverted (1/Foreign Currency Rate) in order to list it in the required format in the table below\n"]
[5,"All information in the table below must conform with all other equivalent information in the offer. "]
[null,"Payment in terms of Payment Method 2  is considered as a \"foreign payment\" although it will be effected in South African Rand. However, amounts for  \"F.O.R. Price-Goods supplied from Imported Items\", are NOT considered as \"foreign payments\""]
[null,"If more than one payment method apply for a currency, the Tenderer must request an additional row be inserted in the table in order to split the values and identify the relevant method.   "]
[" "]
[" "]
["EXCHANGE RATES PUBLISHED BY SARB"]
["NB: Tenderers must submit proof of the SARB rate (s) of exchange used."]
[{"$nulls":4},"Date for which the rates are published :",null,null,"Date to be inserted in the following format: Day, Month and Year.\n\nMust be the SARB rate at 12:00 on day of advertisement of bid"]
["No","Currency Description","Code","Exchange Rate\nCurrency 1,00 = R Amount","Payment Method 1a, 1b or 2","Source"]
[1,"South African Rand","ZAR",{"v":1,"d":"R 1.00"}]
[2,"Australian Dollar","AUD",{"v":0,"d":"R 0.00"}]
[3,"Canadian Dollar","CAN",{"v":0,"d":"R 0.00"}]
[4,"Swiss Franc","CHF",{"v":0,"d":"R 0.00"}]
[5,"Danish Krone","DKK",{"v":0,"d":"R 0.00"}]
[6,"European Currency","EUR",{"v":0,"d":"R 0.00"}]
[7,"British Pound","GBP",{"v":0,"d":"0.0000"}]
[8,"Hong Kong Dollar","HKD",{"v":0,"d":"0.0000"}]
[9,"Japanese Yen","JPY",{"v":0,"d":"0.0000"}]
[10,"Norwegian Krone","NOK",{"v":0,"d":"0.0000"}]
[11,"New Zealand Dollar","NZD",{"v":0,"d":"0.0000"}]
[12,"Swedish Krone","SEK",{"v":0,"d":"0.0000"}]
[13,"Singapore Dollar","SGD",{"v":0,"d":"0.0000"}]
[14,"United States Dollar","USD",{"v":0,"d":"0.0000"}]